{"text_format":"1","workbook":"xlsx","n_sheets":3,"sheets":["Factura","Clientes","Productos"],"not_rendered":{"charts":0,"images":3,"macros":1,"external_links":0,"defined_names":4,"comments":0,"pivot_tables":0},"unopened":[],"bounds":{"document_bytes":16777216,"sheet_cells":100000,"rows_first":2000,"rows_last":500,"rows_between":2000,"halvings":0,"cell_chars":16384,"cell_head_chars":4096},"cells_cut":0,"cells_raw":0,"read":"whole","date_system":"1900"}

{"sheet":"Factura","index":0,"n_rows":44,"n_cols":7,"rows_kept":44,"cut":false,"hidden":false,"merged":[[0,4,0,6],[0,1,0,3],[1,1,1,3],[31,1,31,3],[43,1,43,6],[40,1,40,6],[41,1,41,6],[36,5,36,6],[37,5,37,6],[32,1,32,3],[33,1,33,3],[34,1,34,3],[36,1,36,3],[37,1,37,3],[35,1,35,3]]}
[null,"YADER MARTÍNEZ S.A.",null,null,"FACTURA"]
[null,"Soluciones Informáticas",null,null,null,"Fecha:",{"$f":"TODAY()","v":"2022-06-21"}]
[null,null,null,null,null,"Nº de Factura","[123456]"]
[null,"[Dirección]",null,null,null,"Nº de Cliente",{"$f":"MATCH(B9,busc_cliente,0)","v":25}]
[null,"[Managua, Nicaragua, 505]"]
[null,"Teléfono: [8888-8888]"]
[]
[null,"FACTURAR A:",null,"Clic para buscar un cliente"]
[null,"J0310000001707"]
[null,{"$f":"VLOOKUP($B$9,clientes,2,FALSE)","v":"ALMACENES SIMAN SOCIEDAD ANONIMA SIMAN S.A."}]
[null,{"$f":"VLOOKUP($B$9,clientes,3,FALSE)","v":"DIRECCIÓN CLIENTE 25"}]
[null,{"$f":"VLOOKUP($B$9,clientes,4,FALSE)","v":"MANAGUA"}]
[null,{"$f":"VLOOKUP($B$9,clientes,5,FALSE)","v":"1234-5678"}]
[null,"Click en el signo + para agregar un producto"]
[null,"DESCRIPCIÓN",null,null,"CANT","PRECIO","TOTAL"]
[null,null,null,null,null,{"$f":"IF(B16<>\"\",VLOOKUP(B16,productos,3),\"\")","v":""},{"$f":"IF(B16<>\"\",E16*F16,\"\")","v":""}]
[null,null,null,null,null,{"$f":"IF(B17<>\"\",VLOOKUP(B17,productos,3),\"\")","v":""},{"$f":"IF(B17<>\"\",E17*F17,\"\")","v":""}]
[null,null,null,null,null,{"$f":"IF(B18<>\"\",VLOOKUP(B18,productos,3),\"\")","v":""},""]
[null,null,null,null,null,{"$f":"IF(B19<>\"\",VLOOKUP(B19,productos,3),\"\")","v":""},""]
[null,null,null,null,null,{"$f":"IF(B20<>\"\",VLOOKUP(B20,productos,3),\"\")","v":""},""]
[null,null,null,null,null,{"$f":"IF(B21<>\"\",VLOOKUP(B21,productos,3),\"\")","v":""},""]
[null,null,null,null,null,{"$f":"IF(B22<>\"\",VLOOKUP(B22,productos,3),\"\")","v":""},""]
[null,null,null,null,null,{"$f":"IF(B23<>\"\",VLOOKUP(B23,productos,3),\"\")","v":""},""]
[null,null,null,null,null,{"$f":"IF(B24<>\"\",VLOOKUP(B24,productos,3),\"\")","v":""},""]
[null,null,null,null,null,{"$f":"IF(B25<>\"\",VLOOKUP(B25,productos,3),\"\")","v":""},""]
[null,null,null,null,null,{"$f":"IF(B26<>\"\",VLOOKUP(B26,productos,3),\"\")","v":""},""]
[null,null,null,null,null,{"$f":"IF(B27<>\"\",VLOOKUP(B27,productos,3),\"\")","v":""},""]
[null,null,null,null,null,{"$f":"IF(B28<>\"\",VLOOKUP(B28,productos,3),\"\")","v":""},""]
[null,null,null,null,null,{"$f":"IF(B29<>\"\",VLOOKUP(B29,productos,3),\"\")","v":""},""]
[null,null,null,null,null,{"$f":"IF(B30<>\"\",VLOOKUP(B30,productos,3),\"\")","v":""},""]
[null,null,null,null,"[42]","SUBTOTAL",{"$f":"SUM(G16:G30)","v":0}]
[null,"COMENTARIOS",null,null,null,"TASA DE IMPUESTO",0.15]
[null,"1. Total a pagar en 30 días",null,null,null,"IMPUESTO",{"$f":"G32*G31","v":0}]
[null,"2. Incluya por favor el número de factura en su cheque",null,null,null,"OTRO",0]
[null,null,null,null,null,"TOTAL",{"$f":"G31+G33+G34","v":0}]
[]
[null,null,null,null,null,"Haga los cheques pagaderos a\n"]
[null,null,null,null,null,"[nombre de su compañía]"]
[]
[]
[null,"Si usted tiene preguntas sobre esta factura, póngase en contacto con"]
[null,"[Nombre, Teléfono, E-mail]"]
[]
[null,"¡Gracias por su negocio!"]

{"sheet":"Clientes","index":1,"n_rows":489,"n_cols":6,"rows_kept":489,"cut":false,"hidden":false,"merged":[]}
["ID","RUC","NOMBRE","DIRECCIÓN","CIUDAD","TELÉFONO"]
[1,"J0310000339848","ABASTECEDORA DE ALIMENTOS CENTROAMERICANOS SOCIEDAD ANONIMA ABAC, S.A",{"$f":"+\"DIRECCIÓN CLIENTE \"&A2","v":"DIRECCIÓN CLIENTE 1"},"MANAGUA","1234-5678"]
[2,"J0310000000980","ACEITERA EL REAL SOCIEDAD ANONIMA ACEREAL",{"$f":"+\"DIRECCIÓN CLIENTE \"&A3","v":"DIRECCIÓN CLIENTE 2"},"MASAYA","1234-5678"]
[3,"J0310000376506","ACEITES Y GRASAS ALIMENTICIAS DE NICARAGUA,SOCIEDAD ANONIMA AGRANICSA","DIRECCIÓN CLIENTE 3","CARAZO","1234-5678"]
[4,"J0310000253994","ACEROS MULTIPLES DE NICARAGUA SOCIEDAD ANONIMA AMUNICSA","DIRECCIÓN CLIENTE 4","RIVAS","1234-5678"]
[5,"J0210000061535","ADOC DE NICARAGUA SOCIEDAD ANONIMA ADOC","DIRECCIÓN CLIENTE 5","ESTELÍ","1234-5678"]
[6,"J0310000005354","AEROTAXI LA COSTEÑA,SOCIEDAD ANONIMA LA COSTEÑA,S.A.","DIRECCIÓN CLIENTE 6","LEÓN","1234-5678"]
[7,"J0310000004889","AGRENIC COMPLEJO INDUSTRIAL NINDIRI S.A. AGRENIC O AGRENIC CINSA","DIRECCIÓN CLIENTE 7","CHINANDEGA","1234-5678"]
[8,"J0310000093695","AGRICENTER NICARAGUA & CIA COLECTIVA DE RESPONSABILIDAD LTDA AGRICENTER NICARAGUA & CCRL","DIRECCIÓN CLIENTE 8","CORINTO","1234-5678"]
[9,"J0310000000280","AGRICOLA GANADERA NORTENA SOCIEDAD ANONIMA AGANORSA","DIRECCIÓN CLIENTE 9","MANAGUA","1234-5678"]
[10,"J0310000034826","AGRO ESPANA NICARAGUA SOCIEDAD ANONIMA AGROESNICA","DIRECCIÓN CLIENTE 10","MASAYA","1234-5678"]
[11,"J0310000268380","AGRO IRIS SOCIEDAD ANONIMA AGRO IRIS S.A","DIRECCIÓN CLIENTE 11","CARAZO","1234-5678"]
[12,"J0310000001170","AGROINDUSTRIAL DE OLEAGINOSAS S A AGROSA","DIRECCIÓN CLIENTE 12","RIVAS","1234-5678"]
[13,"J0310000121575","AGRONEGOCIOS COMERCIALES SOCIEDAD ANONIMA AGRONEGOCIOS COMERCIALES S A","DIRECCIÓN CLIENTE 13","ESTELÍ","1234-5678"]
[14,"J0310000018855","AGROPECUARIA BRAVO SOCIEDAD ANONIMA ABRASA","DIRECCIÓN CLIENTE 14","LEÓN","1234-5678"]
[15,"J0310000165793","AGROPECUARIA DE EXPORTACIONES,SOCIEDAD ANONIMA AGROEXPORT,S.A","DIRECCIÓN CLIENTE 15","CHINANDEGA","1234-5678"]
[16,"J0310000092079","AGROPECUARIA SANTA LASTENIA SOCIEDAD ANONIMA ASLASA","DIRECCIÓN CLIENTE 16","CORINTO","1234-5678"]
[17,"J0310000226571","AGROSEMILLAS DE NICARAGUA SOCIEDAD ANONIMA AGROSEMSA","DIRECCIÓN CLIENTE 17","MANAGUA","1234-5678"]
[18,"J0310000003904","AIRPAK INTERNACIONAL NICARAGUA SOCIEDAD ANONIMA AIRPAK INTERNAC NIC S A","DIRECCIÓN CLIENTE 18","MASAYA","1234-5678"]
[19,"J0310000021619","AJENICARAGUA, SOCIEDAD ANONIMA BIG COLA","DIRECCIÓN CLIENTE 19","CARAZO","1234-5678"]
[20,"J0320000086643","ALBA DE NICARAGUA SA ALBANISA","DIRECCIÓN CLIENTE 20","RIVAS","1234-5678"]
[21,"J0310000113424","ALBA GENERACION SOCIEDAD ANONIMA ALBA GENERACION SA","DIRECCIÓN CLIENTE 21","ESTELÍ","1234-5678"]
[22,"J0310000307008","ALIMENTOS EM CENTROAMERICA SOCIEDAD ANONIMA EM CENTROAMERICA","DIRECCIÓN CLIENTE 22","LEÓN","1234-5678"]
[23,"J0310000177619","ALIMENTOS INDUSTRIALES DE NIC SOCIEDAD ANONIMA A.L.I.N.S.A","DIRECCIÓN CLIENTE 23","CHINANDEGA","1234-5678"]
[24,"J0310000114064","ALMACEN E INDUSTRIAS RIVAS OPSTAELE S.A. RIVAS OPSTAELE","DIRECCIÓN CLIENTE 24","CORINTO","1234-5678"]
[25,"J0310000001707","ALMACENES SIMAN SOCIEDAD ANONIMA SIMAN S.A.","DIRECCIÓN CLIENTE 25","MANAGUA","1234-5678"]
[26,"J0310000006830","ALPLA NICARAGUA, SOCIEDAD ANONIMA ALPLA, S.A.","DIRECCIÓN CLIENTE 26","MASAYA","1234-5678"]
[27,"J0310000136483","ALUTECH NICARAGUA, SOCIEDAD ANONIMA ALUTECH NICARAGUA, S.A.","DIRECCIÓN CLIENTE 27","CARAZO","1234-5678"]
[28,"J0310000001073","ALVIA COMERCIAL, SOCIEDAD ANONIMA ALVIA COMERCIAL S A","DIRECCIÓN CLIENTE 28","RIVAS","1234-5678"]
[29,"J0910000225270","ALVIMER INTERNACIONAL Y COMPAÑIA LIMITADA ALVIMER","DIRECCIÓN CLIENTE 29","ESTELÍ","1234-5678"]
[30,"J0510000001773","AMELA DABDUB IMPORTACIONES & COMPANIA LIMITADA ADIM Y CIA LTDA.","DIRECCIÓN CLIENTE 30","LEÓN","1234-5678"]
[31,"J0310000032289","AMERIJET INTERNATIONAL INC AMERIJET INTERNATIONAL INC","DIRECCIÓN CLIENTE 31","CHINANDEGA","1234-5678"]
[32,"J0310000092370","AMPM SOCIEDAD ANONIMA SUPERMERCADO AMPM","DIRECCIÓN CLIENTE 32","CORINTO","1234-5678"]
[33,"0011011580048X","ANDREA DEL CARMEN VELASQUEZ GAITAN DISTRIB LA UNIVERSAL","DIRECCIÓN CLIENTE 33","MANAGUA","1234-5678"]
[34,"0012110650002C","ANGEL ELI CRUZ SOTO","DIRECCIÓN CLIENTE 34","MASAYA","1234-5678"]
[35,"J0310000034290","AQUACULTURA TORRECILLAS SOCIEDAD ANONIMA AQUACULTURA TORRECILLA S,A","DIRECCIÓN CLIENTE 35","CARAZO","1234-5678"]
[36,"J0310000041490","ARABELA NICARAGUA, SOCIEDAD ANONIMA ARABELA","DIRECCIÓN CLIENTE 36","RIVAS","1234-5678"]
[37,"J0310000228698","ARQUITECTURA INGENIERIA Y CONSTRUCCION INDUSTRIAL DE NICARAGUA S.A ARCONICSA","DIRECCIÓN CLIENTE 37","ESTELÍ","1234-5678"]
[38,"J0310000012814","ARROCERA VENLLANO S A ARROCERA VENLLANO SA","DIRECCIÓN CLIENTE 38","LEÓN","1234-5678"]
[39,"J0310000102759","ASC GROUP INTERNATIONAL CORPORATION SOCIEDAD ANONIMA ASC GROUP S A","DIRECCIÓN CLIENTE 39","CHINANDEGA","1234-5678"]
[40,"J0310000322201","ASFALTOS INDUSTRIALES, SOCIEDAD ANONIMA","DIRECCIÓN CLIENTE 40","CORINTO","1234-5678"]
[41,"J0310000040958","ASISTENCIA MEDICA DE OCCIDENTE SOCIEDAD ANONIMA ASISTENCIA MEDICA DE OCCIDENTE SOCIEDAD ANONIMA","DIRECCIÓN CLIENTE 41","MANAGUA","1234-5678"]
[42,"J0810000000126","ASOC SOLIDARISTA DE TRABAJADORES DE HOLCIM NIC ASOHOLCIM","DIRECCIÓN CLIENTE 42","MASAYA","1234-5678"]
[43,"J0210000217918","ASOCIACION MOMENTANEA CONSORCIO GUARMESA CONSORCIO GUARMESA","DIRECCIÓN CLIENTE 43","CARAZO","1234-5678"]
[44,"J0310000003831","ASSA COMPAÑIA DE SEGUROS S,A ASSA COMPAÑIA DE SEGUROS","DIRECCIÓN CLIENTE 44","RIVAS","1234-5678"]
[45,"J0310000087768","ASTRO PACKING SOLUTION, SOCIEDAD ANONIMA ASTRO PACKING SOLUTION, S.A.","DIRECCIÓN CLIENTE 45","ESTELÍ","1234-5678"]
[46,"J0310000000670","AUTO MASTER SOCIEDAD ANONIMA AUTO MASTER SOCIEDAD ANONIMA","DIRECCIÓN CLIENTE 46","LEÓN","1234-5678"]
[47,"J0310000001294","AUTONICA SOCIEDAD ANONIMA CENTRO TOYOTA","DIRECCIÓN CLIENTE 47","CHINANDEGA","1234-5678"]
[48,"J0310000242445","AVICOLA CENTROAMERICANA SOCIEDAD ANONIMA AVICA SOCIEDAD ANONIMA","DIRECCIÓN CLIENTE 48","CORINTO","1234-5678"]
[49,"J0310000002720","AVICOLA LA BARRANCA SOCIEDAD ANONIMA AVICOLA LA BARRANCA S.A.","DIRECCIÓN CLIENTE 49","MANAGUA","1234-5678"]
[50,"J0310000001936","AVICOLA LA ESTRELLA SOCIEDAD ANONIMA AVICOLA LA ESTRELLA S.A","DIRECCIÓN CLIENTE 50","MASAYA","1234-5678"]
[51,"J0310000004820","B.LANZAS CONTRATISTAS CIVILES SOCIEDAD ANONIMA LLANSA INGENIEROS S.A.","DIRECCIÓN CLIENTE 51","CARAZO","1234-5678"]
[52,"J0310000002339","BANCO AVANZ SOCIEDAD ANONIMA AVANZ","DIRECCIÓN CLIENTE 52","RIVAS","1234-5678"]
[53,"J0310000220220","BANCO CORPORATIVO SOCIEDAD ANONIMA BANCORP","DIRECCIÓN CLIENTE 53","ESTELÍ","1234-5678"]
[54,"J0310000001090","BANCO DE AMERICA CENTRAL SOCIEDAD ANONIMA BANCO DE AMERICA CENTRAL S.A","DIRECCIÓN CLIENTE 54","LEÓN","1234-5678"]
[55,"J0310000004790","BANCO DE FINANZAS SOCIEDAD ANONIMA BANCO DE FINANZAS S.A.","DIRECCIÓN CLIENTE 55","CHINANDEGA","1234-5678"]
[56,"J1330000004441","BANCO DE FOMENTO A LA PRODUCCION BANCO PRODUZCAMOS","DIRECCIÓN CLIENTE 56","CORINTO","1234-5678"]
[57,"J0310000002002","BANCO DE LA PRODUCCION SOCIEDAD ANONIMA BANPRO","DIRECCIÓN CLIENTE 57","MANAGUA","1234-5678"]
[58,"J0310000001952","BANCO FICOHSA NICARAGUA SOCIEDAD ANONIMA. BANCO FICOHSA NICARAGUA S.A.","DIRECCIÓN CLIENTE 58","MASAYA","1234-5678"]
[59,"J0310000006296","BANCO LAFISE BANCENTRO SOCIEDAD ANONIMA BANCO LAFISE S.A.","DIRECCIÓN CLIENTE 59","CARAZO","1234-5678"]
[60,"0811102570005R","BAYARDO ALEJANDRO ROMERO SUPERMERCADO Y DISTRIBUIDORA SELECTO","DIRECCIÓN CLIENTE 60","RIVAS","1234-5678"]
[61,"J0310000011907","BENEFICIADORA NORTENA DE CAFE S.A. BENCAFE","DIRECCIÓN CLIENTE 61","ESTELÍ","1234-5678"]
[62,"J0310000140189","BEST BRAND PACAS, SOCIEDAD ANONIMA. BEST BRAND PACAS S,A","DIRECCIÓN CLIENTE 62","LEÓN","1234-5678"]
[63,"J0310000004080","BIMBO DE NICARAGUA SOCIEDAD ANONIMA BIMBO DE NICARAGUA, S.A.","DIRECCIÓN CLIENTE 63","CHINANDEGA","1234-5678"]
[64,"J0310000002142","BLANDON MENDIETA, SOCIEDAD ANONIMA, BLAMEN S.A.","DIRECCIÓN CLIENTE 64","CORINTO","1234-5678"]
[65,"J0310000122300","BLUE POWER & ENERGY SA B. P. E","DIRECCIÓN CLIENTE 65","MANAGUA","1234-5678"]
[66,"J0310000122423","BODEGA MARINA, SOCIEDAD ANONIMA LA BODEGA MARINA S.A",{"$f":"+\"DIRECCIÓN CLIENTE \"&A67","v":"DIRECCIÓN CLIENTE 66"},"MASAYA","1234-5678"]
[67,"J0310000009120","BRENNTAG NICARAGUA SOCIEDAD ANONIMA BRENNTAG NICARAGUA S.A","DIRECCIÓN CLIENTE 67","CARAZO","1234-5678"]
[68,"J0310000003548","BRITISH AMERICAN TOBACCO CENTRAL AMERICA, S.A. BATCA, S.A.","DIRECCIÓN CLIENTE 68","RIVAS","1234-5678"]
[69,"J0310000004650","BUENA ESPERANZA LIMITADA , SOCIEDAD ANONIMA Página 2 PHARAOHS","DIRECCIÓN CLIENTE 69","ESTELÍ","1234-5678"]
[70,"J0310000057796","BUHLER PHARMA, SOCIEDAD ANONIMA BUHLER PHARMA S.A.","DIRECCIÓN CLIENTE 70","LEÓN","1234-5678"]
[71,"J0310000001383","CAFE SOLUBLE S A CAFE SOLUBLE S A","DIRECCIÓN CLIENTE 71","CHINANDEGA","1234-5678"]
[72,"J0310000005540","CALOX DE NICARAGUA S A CALOX DE NICARAGUA","DIRECCIÓN CLIENTE 72","CORINTO","1234-5678"]
[73,"J0310000005508","CAMARONES DEL PACIFICO,SOCIEDAD ANONIMA CAMPA S.A.","DIRECCIÓN CLIENTE 73","MANAGUA","1234-5678"]
[74,"J0310000003203","CARGILL DE NICARAGUA , SOCIEDAD ANONIMA CARGILL , CARGILL DE NICARAGUA, S.A. , TIP TOP","DIRECCIÓN CLIENTE 74","MASAYA","1234-5678"]
[75,"J0310000177732","CARGO TRANS SOCIEDAD ANONIMA CARGO TRANS","DIRECCIÓN CLIENTE 75","CARAZO","1234-5678"]
[76,"J0310000003858","CASA COMERCIAL MANTICA SOCIEDAD ANONIMA SUPERMERCADOS LA COLONIA","DIRECCIÓN CLIENTE 76","RIVAS","1234-5678"]
[77,"J0310000000271","CASA DE LAS MANGUERAS Y CONEXIONES S A LA CASA DE LAS MANGUERAS S A","DIRECCIÓN CLIENTE 77","ESTELÍ","1234-5678"]
[78,"J0310000150907","CASA DEL CAFE, SOCIEDAD ANONIMA CASA DEL CAFE S.A","DIRECCIÓN CLIENTE 78","LEÓN","1234-5678"]
[79,"J0310000005737","CASA MCGREGOR S A CASA MCGREGOR S A","DIRECCIÓN CLIENTE 79","CHINANDEGA","1234-5678"]
[80,"J0310000002371","CASA PELLAS SOCIEDAD ANONIMA CASA PELLAS","DIRECCIÓN CLIENTE 80","CORINTO","1234-5678"]
[81,"J0310000182540","CASAVISION SOCIEDAD ANONIMA CASAVISION, S.A.","DIRECCIÓN CLIENTE 81","MANAGUA","1234-5678"]
[82,"J0310000001820","CEMEX NICARAGUA S.A. CEMEX NICARAGUA S.A","DIRECCIÓN CLIENTE 82","MASAYA","1234-5678"]
[83,"J0310000086443","CENTRAL AMERICAN FISHERIES S A CAF, S.A.","DIRECCIÓN CLIENTE 83","CARAZO","1234-5678"]
[84,"J0410000000225","CENTRAL DE COOP. DE SERVICIOS MULTIPLES PRODECOOP R.L PRODECOOP R.L","DIRECCIÓN CLIENTE 84","RIVAS","1234-5678"]
[85,"J0310000249806","CENTRO OFTALMOLOGICO HOSPITAL MILITAR ESCUELA DR ALEJANDRO DAVILA BOLAÑOS","DIRECCIÓN CLIENTE 85","ESTELÍ","1234-5678"]
[86,"J0310000000255","CEREALES DE CENTROAMERICA S.A. CERSA","DIRECCIÓN CLIENTE 86","LEÓN","1234-5678"]
[87,"J0310000211876","CLIMA GLOBAL SOCIEDAD ANONIMA CLIMA GLOBAL SA","DIRECCIÓN CLIENTE 87","CHINANDEGA","1234-5678"]
[88,"J0310000006440","CLINICA SANTA FE SOCIEDAD ANONIMA CLINICA SANTA FE","DIRECCIÓN CLIENTE 88","CORINTO","1234-5678"]
[89,"J0310000111820","COGENERACION GREEN POWER, SOCIEDAD ANONIMA COGENERACION GREEN POWER, S.A.","DIRECCIÓN CLIENTE 89","MANAGUA","1234-5678"]
[90,"J0710000001349","COLGATE PALMOLIVE C A INC COLGATE PALMOLIVE","DIRECCIÓN CLIENTE 90","MASAYA","1234-5678"]
[91,"J0310000029679","COMERCIAL E.DETRINIDAD S.A CEDETSA","DIRECCIÓN CLIENTE 91","CARAZO","1234-5678"]
[92,"J0310000005273","COMERCIAL INTERNACIONAL AGRICOLA SOCIEDAD ANONIMA CISA AGRO S.A.","DIRECCIÓN CLIENTE 92","RIVAS","1234-5678"]
[93,"J0310000000417","COMERCIAL INTERNACIONAL EXPORTADORA S.A CISA EXPORTADORA","DIRECCIÓN CLIENTE 93","ESTELÍ","1234-5678"]
[94,"J0310000006644","COMERCIAL POZUELO NICARAGUA SOCIEDAD ANONIMA COMERCIAL POZUELO NICARAGUA S.A.","DIRECCIÓN CLIENTE 94","LEÓN","1234-5678"]
[95,"J0310000005290","COMERCIALIZADORA DE MANI,SOCIEDAD ANONIMA COMASA","DIRECCIÓN CLIENTE 95","CHINANDEGA","1234-5678"]
[96,"J0310000381143","COMERCIALIZADORA MINERA DE OCCIDENTE SOCIEDAD ANONIMA COMOC S A","DIRECCIÓN CLIENTE 96","CORINTO","1234-5678"]
[97,"J0310000002487","COMERCIALIZADORA PANAMERICANA, S. A COPASA","DIRECCIÓN CLIENTE 97","MANAGUA","1234-5678"]
[98,"J0310000000760","COMERCIALIZADORA VARGAS SARAVIA,S.A COMVARSA","DIRECCIÓN CLIENTE 98","MASAYA","1234-5678"]
[99,"J0310000005982","COMPANIA AZUCARERA DEL SUR , S.A. CASUR S.A.","DIRECCIÓN CLIENTE 99","CARAZO","1234-5678"]
[100,"J0310000001960","COMPANIA CERVECERA DE NICARAGUA S A COMPANIA CERVECERA DE NICARAGUA S A","DIRECCIÓN CLIENTE 100","RIVAS","1234-5678"]
[101,"J0310000193169","COMPANIA DISTRIBUIDORA DE NICARAGUA S A COMPANIA DISTRIBUIDORA DE NICARAGUA S A","DIRECCIÓN CLIENTE 101","ESTELÍ","1234-5678"]
[102,"J0310000017921","COMPAÑIA CENTROAMERICANA DE PRODUCTOS LACTEOS S.A PROLACSA","DIRECCIÓN CLIENTE 102","LEÓN","1234-5678"]
[103,"J0110000149616","COMPAÑIA INTERAMERICANA DE COMERCIO DE NICARAGUA S.A CINDECO NICARAGUA S.A","DIRECCIÓN CLIENTE 103","CHINANDEGA","1234-5678"]
[104,"J0310000002096","COMPAÑIA LICORERA DE NICARAGUA S.A. Página 3 COMPAÑIA LICORERA DE NICARAGUA S.A","DIRECCIÓN CLIENTE 104","CORINTO","1234-5678"]
[105,"J0310000358001","COMPAÑIA NICARAGUENSE DE SERVICIOS, SOCIEDAD ANONIMA CONISER","DIRECCIÓN CLIENTE 105","MANAGUA","1234-5678"]
[106,"J0310000000301","COMPAÑIA PANAMEÑA DE AVIACION S.A COPA AIRLINES.","DIRECCIÓN CLIENTE 106","MASAYA","1234-5678"]
[107,"J0310000003769","COMPAÑIA SEGUROS AMERICA SOCIEDAD ANONIMA SEGUROS AMERICA S A","DIRECCIÓN CLIENTE 107","CARAZO","1234-5678"]
[108,"J0310000000247","CONCRETERA TOTAL S A CONCRETERA TOTAL S A","DIRECCIÓN CLIENTE 108","RIVAS","1234-5678"]
[109,"J0310000210292","CONCRETOS & MAS SOCIEDAD ANONIMA CONCRETOS & MAS, S.A","DIRECCIÓN CLIENTE 109","ESTELÍ","1234-5678"]
[110,"J0310000009392","CONGELADOS SOCIEDAD ANONIMA CONGELADOS S.A","DIRECCIÓN CLIENTE 110","LEÓN","1234-5678"]
[111,"J0510000295416","CONSORCIO ABAS","DIRECCIÓN CLIENTE 111","CHINANDEGA","1234-5678"]
[112,"J0110000038601","CONSORCIO EOLICO AMAYO FASE II, SOCIEDAD ANON.S.A. CONSORCIO EOLICO AMAYO FASE II S.A.","DIRECCIÓN CLIENTE 112","CORINTO","1234-5678"]
[113,"J0310000004226","CONSORCIO EOLICO AMAYO SA SUCURSAL NICARAGUA CONSORCIO EOLICO AMAYO SA","DIRECCIÓN CLIENTE 113","MANAGUA","1234-5678"]
[114,"J1010000343063","CONSORCIO EUROPEO HOSPITAL DE CHINANDEGA CEHCHI","DIRECCIÓN CLIENTE 114","MASAYA","1234-5678"]
[115,"J1010000376239","CONSORCIO GORA MELFOSUR CONSORCIO GORA MELFOSUR","DIRECCIÓN CLIENTE 115","CARAZO","1234-5678"]
[116,"J0310000375895","CONSORCIO NINDIRI, SOCIEDAD ANONIMA","DIRECCIÓN CLIENTE 116","RIVAS","1234-5678"]
[117,"J0310000370524","CONSORCIO SAN CRISTOBAL SOCIEDAD ANONIMA CONSACRISA","DIRECCIÓN CLIENTE 117","ESTELÍ","1234-5678"]
[118,"J0310000377243","CONSORCIO VACSA CONIASA","DIRECCIÓN CLIENTE 118","LEÓN","1234-5678"]
[119,"J0310000003807","CONSTRUCCIONES LACAYO FIALLOS S A LACAYO FIALLOS S A","DIRECCIÓN CLIENTE 119","CHINANDEGA","1234-5678"]
[120,"J0310000006130","CONSTRUCTORA MECO S.A CONSTRUCTORA MECO S .A","DIRECCIÓN CLIENTE 120","CORINTO","1234-5678"]
[121,"J0510000018226","CONSTRUCTORA SANTA FE LIMITADA SUCURSAL NICARAGUA CONSTRUCTORA SANTA FE","DIRECCIÓN CLIENTE 121","MANAGUA","1234-5678"]
[122,"J0310000018448","CONSTRUMARKET DE NICARAGUA SA CONSTRUMARKET","DIRECCIÓN CLIENTE 122","MASAYA","1234-5678"]
[123,"J0810000003702","CONVENCION BAUTISTA DE NICARAGUA. CONVENCION BAUTISTA DE NICARAGUA.","DIRECCIÓN CLIENTE 123","CARAZO","1234-5678"]
[124,"J0310000084866","COOP DE AHORRO Y CRED Y SERV MULT GRUPO TIP TOP COMEGTT","DIRECCIÓN CLIENTE 124","RIVAS","1234-5678"]
[125,"J0410000046527","COOP MULTIFUNCIONAL DE PRODUCTORES EXP DE CAFE S J R C RL PROCAFE RL","DIRECCIÓN CLIENTE 125","ESTELÍ","1234-5678"]
[126,"J0410000026011","COOP SERVICIOS MULT JGA PROD RIQUEZAS DE LA TIERRA R L RIQUEZASCOOP R L","DIRECCIÓN CLIENTE 126","LEÓN","1234-5678"]
[127,"J0110000017680","COOP. AGROPECUARIA DE SERVICIOS STO.TOMAS R.L COOPERATIVA AGROPECUARIA","DIRECCIÓN CLIENTE 127","CHINANDEGA","1234-5678"]
[128,"J0410000020943","COOP. DE PRODUCTORES AGROPECUARIOS DE MULUKUKU COPAM R.L","DIRECCIÓN CLIENTE 128","CORINTO","1234-5678"]
[129,"J0410000007432","COOP. DE SERV. Y CRED. PARA LA PROD. AGROP. MASIGUITO R.L. COOPERATIVA MASIGUITO","DIRECCIÓN CLIENTE 129","MANAGUA","1234-5678"]
[130,"J0410000094106","COOP.DE SERV. AGROP. DELICIAS DEL CAMPO DE SANTO DOMINGO R.L. COOSERVA RL",{"$f":"+\"DIRECCIÓN CLIENTE \"&A131","v":"DIRECCIÓN CLIENTE 130"},"MASAYA","1234-5678"]
[131,"J0410000006860","COOP.MULT.CHONTALAC DE SAN PEDRO LOVAGO R.L COOP.MULT.CHONTALAC DE SAN PEDRO LOVAGO R.L","DIRECCIÓN CLIENTE 131","CARAZO","1234-5678"]
[132,"J0410000118781","COOPERATIVA MULTISECTORIAL SEMILLAS Y ESPERANZA DEL NORTE R.L ESPERANZA COOP R.L.","DIRECCIÓN CLIENTE 132","RIVAS","1234-5678"]
[133,"J0310000003530","CORP CEFA DE NIC S A CEFA DE NIC","DIRECCIÓN CLIENTE 133","ESTELÍ","1234-5678"]
[134,"J0310000001693","CORP.DE SUPERMERCADOS UNIDOS DE NICARAGUA S A CORP. DE SUPERMERCADOS C.S.U","DIRECCIÓN CLIENTE 134","LEÓN","1234-5678"]
[135,"J0310000005419","CORPORACION AGRICOLA S,A. AGRI CORP","DIRECCIÓN CLIENTE 135","CHINANDEGA","1234-5678"]
[136,"J0310000000425","CORPORACION BANCENTRO SOCIEDAD ANONIMA CORPORACION BANCENTRO SOCIEDAD ANONIMA","DIRECCIÓN CLIENTE 136","CORINTO","1234-5678"]
[137,"J1430000003482","CORPORACION DE ZONAS FRANCAS CORPORACION DE ZONAS FRANCAS","DIRECCIÓN CLIENTE 137","MANAGUA","1234-5678"]
[138,"J0310000000573","CORPORACION ELECTRICA NICARAGUENSE, SOCIEDAD ANONI","DIRECCIÓN CLIENTE 138","MASAYA","1234-5678"]
[139,"J0310000220778","CORPORACION FINANCIERA SOCIEDAD ANONIMA CREDI FACIL","DIRECCIÓN CLIENTE 139","CARAZO","1234-5678"]
[140,"J0310000002509","CORPORACION MONTELIMAR SOCIEDAD ANONIMA Página 4 CORPORACION MONTELIMAR S.A.","DIRECCIÓN CLIENTE 140","RIVAS","1234-5678"]
[141,"J0310000054150","CORPORACION PARA LA PROMOCION Y DESARROLLO CORP PRODESA","DIRECCIÓN CLIENTE 141","ESTELÍ","1234-5678"]
[142,"J0310000006229","CREDITO SOCIEDAD ANONIMA CREDOMATIC","DIRECCIÓN CLIENTE 142","LEÓN","1234-5678"]
[143,"J0310000001472","CRUZ LORENA EXPORTACION IMPORTACION S.A. CRUZ LORENA S.A","DIRECCIÓN CLIENTE 143","CHINANDEGA","1234-5678"]
[144,"J0910000106018","CRUZ Y MEDAL Y COMPAÑIA LIMITADA CRUZ Y MEDAL CIA. LTDA.","DIRECCIÓN CLIENTE 144","CORINTO","1234-5678"]
[145,"J0310000046638","CUBAS ELECTRICA S.A CUBAS ELECTRICA S.A","DIRECCIÓN CLIENTE 145","MANAGUA","1234-5678"]
[146,"J0310000000891","CUKRA DEVELOPMENT CORPORATION , S.A CUKRA","DIRECCIÓN CLIENTE 146","MASAYA","1234-5678"]
[147,"J0310000000468","CUKRA INDUSTRIAL, SOCIEDAD ANONIMA CUKRA","DIRECCIÓN CLIENTE 147","CARAZO","1234-5678"]
[148,"J0310000006580","DELI POLLO SOCIEDAD ANONIMA DELI POLLO","DIRECCIÓN CLIENTE 148","RIVAS","1234-5678"]
[149,"J0310000001626","DESARROLLO MINERO DE NICARAGUA S.A. DESMINIC","DIRECCIÓN CLIENTE 149","ESTELÍ","1234-5678"]
[150,"J0610000004327","DESHON COMPAÑIA LIMITADA AUTO MONTOYA","DIRECCIÓN CLIENTE 150","LEÓN","1234-5678"]
[151,"J0310000002363","D'GUERRERO INGENIEROS,S.A. D'GUERRERO INGENIEROS S A","DIRECCIÓN CLIENTE 151","CHINANDEGA","1234-5678"]
[152,"J0310000041245","DHL GLOBAL FORWARDING NICARAGUA S.A DHL GLOBAL FORWARDING NICARAGUA S.A","DIRECCIÓN CLIENTE 152","CORINTO","1234-5678"]
[153,"J0310000004137","DHL NICARAGUA SOCIEDAD ANONIMA D. H. L.","DIRECCIÓN CLIENTE 153","MANAGUA","1234-5678"]
[154,"J0310000003017","DIANCA SOCIEDAD ANONIMA DIANCA S A","DIRECCIÓN CLIENTE 154","MASAYA","1234-5678"]
[155,"J0310000003289","DINANT DE NICARAGUA SOCIEDAD ANONIMA DINANT","DIRECCIÓN CLIENTE 155","CARAZO","1234-5678"]
[156,"J0310000135142","DISTRIB DE MATERIALES, S.A. DIDEMA S A SHERWIN WILLIAMS","DIRECCIÓN CLIENTE 156","RIVAS","1234-5678"]
[157,"J0110000009172","DISTRIBUCIONES AGROALFA,S.A. AGROALFA, S.A.","DIRECCIÓN CLIENTE 157","ESTELÍ","1234-5678"]
[158,"J0310000008078","DISTRIBUIDORA CENTRAL SOCIEDAD ANONIMA. DISTRIBUIDORA CENTRAL S.A","DIRECCIÓN CLIENTE 158","LEÓN","1234-5678"]
[159,"J0310000001804","DISTRIBUIDORA CESAR GUERRERO LEJARZA ,S,A. DICEGSA","DIRECCIÓN CLIENTE 159","CHINANDEGA","1234-5678"]
[160,"J0310000055947","DISTRIBUIDORA COMERCIAL CORSARIO S A CORSARIO S A","DIRECCIÓN CLIENTE 160","CORINTO","1234-5678"]
[161,"J0310000000026","DISTRIBUIDORA CONTINENTE S.A CONTESA","DIRECCIÓN CLIENTE 161","MANAGUA","1234-5678"]
[162,"J0310000016259","DISTRIBUIDORA CRUZ AZUL S,A DISTRIBUIDORA CRUZ AZUL S,A","DIRECCIÓN CLIENTE 162","MASAYA","1234-5678"]
[163,"J0310000003750","DISTRIBUIDORA DE ELECTRICIDAD DEL SUR S.A DISSUR","DIRECCIÓN CLIENTE 163","CARAZO","1234-5678"]
[164,"J0310000135100","DISTRIBUIDORA DE GRANOS DE NICARAGUA S.A DIGRANISA","DIRECCIÓN CLIENTE 164","RIVAS","1234-5678"]
[165,"J1210000006279","DISTRIBUIDORA DE PRODUCTOS FARMACEUTICOS DISPROFAR Y CIA LTDA.","DIRECCIÓN CLIENTE 165","ESTELÍ","1234-5678"]
[166,"J0310000171963","DISTRIBUIDORA DEL CAMPO S A DISCAMPO","DIRECCIÓN CLIENTE 166","LEÓN","1234-5678"]
[167,"J0310000082634","DISTRIBUIDORA DEL CARIBE DE NIC,S.A. DICNISA","DIRECCIÓN CLIENTE 167","CHINANDEGA","1234-5678"]
[168,"J0310000044775","DISTRIBUIDORA DELGADO SOCIEDAD ANONIMA DISTRIBUIDORA DELGADO SOCIEDAD ANOMIMA","DIRECCIÓN CLIENTE 168","CORINTO","1234-5678"]
[169,"J0310000000956","DISTRIBUIDORA EL GIGANTE SOCIEDAD ANONIMA","DIRECCIÓN CLIENTE 169","MANAGUA","1234-5678"]
[170,"J0310000195790","DISTRIBUIDORA INTERNACIONAL MEDWELL NICARAGUA S.A MEDWELL","DIRECCIÓN CLIENTE 170","MASAYA","1234-5678"]
[171,"J0310000001251","DISTRIBUIDORA INTERNACIONAL SOCIEDAD ANONIMA DIINSA","DIRECCIÓN CLIENTE 171","CARAZO","1234-5678"]
[172,"J0310000004145","DISTRIBUIDORA MANAGUA SOCIEDAD ANONIMA. DISTRIBUIDORA MANAGUA S.A.","DIRECCIÓN CLIENTE 172","RIVAS","1234-5678"]
[173,"J0310000005257","DISTRIBUIDORA NACIONAL SOCIEDAD ANONIMA DINSA","DIRECCIÓN CLIENTE 173","ESTELÍ","1234-5678"]
[174,"J0310000004498","DISTRIBUIDORA NICAFAR, SOCIEDAD ANONIMA NICAFAR S A","DIRECCIÓN CLIENTE 174","LEÓN","1234-5678"]
[175,"J0310000000824","DISTRIBUIDORA PANZYMA, SOCIEDAD ANONIMA.","DIRECCIÓN CLIENTE 175","CHINANDEGA","1234-5678"]
[176,"J0310000117101","DISTRIBUIDORA PLUTON SOCIEDAD ANONIMA Página 5 DISTRIBUIDORA PLUTON S.A","DIRECCIÓN CLIENTE 176","CORINTO","1234-5678"]
[177,"J0310000343616","DISTRIBUIDORES DEL PACIFICO SOCIEDAD ANONIMA DISPACSA","DIRECCIÓN CLIENTE 177","MANAGUA","1234-5678"]
[178,"J0310000001197","DIVECO NICARAGUA SOCIEDAD ANONIMA DIVECO NICARAGUA S.A","DIRECCIÓN CLIENTE 178","MASAYA","1234-5678"]
[179,"J0310000118353","DROGUERIA ROCHA SOCIEDAD ANONIMA DROROSA","DIRECCIÓN CLIENTE 179","CARAZO","1234-5678"]
[180,"J0310000005460","DURMAN ESQUIVEL INDUSTRIAL DE NICARAGUA,S.A. DURMAN","DIRECCIÓN CLIENTE 180","RIVAS","1234-5678"]
[181,"J0310000008604","DUWEST NICARAGUA S.A DUWEST NIC S A","DIRECCIÓN CLIENTE 181","ESTELÍ","1234-5678"]
[182,"J0310000124906","EDT NICARAGUA S A EDT NIC.","DIRECCIÓN CLIENTE 182","LEÓN","1234-5678"]
[183,"J0910000292997","EFRAIN ALEXIS DE LA CRUZ Y COMPAÑIA LIMITADA NEW CENTURY CED CIA LTDA","DIRECCIÓN CLIENTE 183","CHINANDEGA","1234-5678"]
[184,"J0310000102678","EL COLONO AGROPECUARIO SOCIEDAD ANONIMA E C A S A","DIRECCIÓN CLIENTE 184","CORINTO","1234-5678"]
[185,"J0310000037710","EL VIGILANTE S A EMPRESA PRIVADA DE VIGILANCIA","DIRECCIÓN CLIENTE 185","MANAGUA","1234-5678"]
[186,"J0310000001375","ELECTROQUIMICA DE NICARAGUA,S.A ELQUINSA","DIRECCIÓN CLIENTE 186","MASAYA","1234-5678"]
[187,"J0310000003955","EMBOTELLADORA NACIONAL S A ENSA","DIRECCIÓN CLIENTE 187","CARAZO","1234-5678"]
[188,"J0310000155011","EMP DE COMUNICACIONES S A ECAMI","DIRECCIÓN CLIENTE 188","RIVAS","1234-5678"]
[189,"J0310000082057","EMP P EL APOYO Y DESARR DE LA MICRO Y PEQ EMP URB Y RUR S A MICREDITO SA","DIRECCIÓN CLIENTE 189","ESTELÍ","1234-5678"]
[190,"J1210000006716","EMP.INTEGRAL DE LA CONSTRUCCION MANUEL ESCOBAR P.","DIRECCIÓN CLIENTE 190","LEÓN","1234-5678"]
[191,"J0310000002614","EMPAQUES SANTO DOMINGO S.A. EMPAQUES SANTO DOMINGO S.A","DIRECCIÓN CLIENTE 191","CHINANDEGA","1234-5678"]
[192,"J1210000022940","EMPRESA CONSTRUCTORA LAS SEGOVIAS E.M.C.O.S.E.","DIRECCIÓN CLIENTE 192","CORINTO","1234-5678"]
[193,"J0310000003661","EMPRESA DE SERVICIOS DE SEGURIDAD PRIVADA S.A SEGURIDAD C Y B Y DISELNIC","DIRECCIÓN CLIENTE 193","MANAGUA","1234-5678"]
[194,"J0610000005994","EMPRESA ENERGETICA CORINTO COMPAÑIA LIMITADA EMPRESA ENERGETICA CORINTO COMPAÑIA LTDA",{"$f":"+\"DIRECCIÓN CLIENTE \"&A195","v":"DIRECCIÓN CLIENTE 194"},"MASAYA","1234-5678"]
[195,"J0310000272530","EMPRESA GENERADORA DE ENERGIA RENOVABLE DE RIVAS, SOCIEDAD ANONIMA","DIRECCIÓN CLIENTE 195","CARAZO","1234-5678"]
[196,"J0130000128997","EMPRESA NICARAGUENSE DE CONSTRUCCIONES E N I C","DIRECCIÓN CLIENTE 196","RIVAS","1234-5678"]
[197,"J0130000117170","EMPRESA NICARAGUENSE DE IMPORTACIONES Y EXPORTACIONES ENIMEX","DIRECCIÓN CLIENTE 197","ESTELÍ","1234-5678"]
[198,"J0310000003050","EMPRESA NICARAGUENSE DE TELECOMUNICACIONES S.A. ENITEL SOCIEDAD ANONIMA","DIRECCIÓN CLIENTE 198","LEÓN","1234-5678"]
[199,"J0130000003825","EMPRESA NICARAGUENSE DEL PETROLEO PETRONIC","DIRECCIÓN CLIENTE 199","CHINANDEGA","1234-5678"]
[200,"J0310000112428","EMPRESA PROPIETARIA DE LA RED SOCIEDAD ANONIMA E.P.R","DIRECCIÓN CLIENTE 200","CORINTO","1234-5678"]
[201,"J0310000035172","EOLO DE NICARAGUA SOCIEDAD ANONIMA EOLO NIC. S.A","DIRECCIÓN CLIENTE 201","MANAGUA","1234-5678"]
[202,"J0110000035076","EQUIPOS Y SISTEMAS SOCIEDAD ANONIMA. EQUIPOS Y SISTEMAS S.A.","DIRECCIÓN CLIENTE 202","MASAYA","1234-5678"]
[203,"J0310000031711","ERICSSON A B ERICSSON AB","DIRECCIÓN CLIENTE 203","CARAZO","1234-5678"]
[204,"J0310000003327","ERNESTO CHAMORRO INDUSTRIAL,SOCIEDAD ANONIMA ECISA","DIRECCIÓN CLIENTE 204","RIVAS","1234-5678"]
[205,"J0310000002207","ESCALANTE SANCHEZ ALVARADO,S.A ESCASAN S.A","DIRECCIÓN CLIENTE 205","ESTELÍ","1234-5678"]
[206,"J0310000000166","ESPINOZA INGENIEROS SOCIEDAD ANONIMA ESINSA","DIRECCIÓN CLIENTE 206","LEÓN","1234-5678"]
[207,"J0310000003165","ESTACIONES TERRENAS DE SATELITES SOCIEDAD ANONIMA ESTESA S.A.","DIRECCIÓN CLIENTE 207","CHINANDEGA","1234-5678"]
[208,"J0310000035563","EURO, SOCIEDAD ANONIMA EURO, S.A","DIRECCIÓN CLIENTE 208","CORINTO","1234-5678"]
[209,"J0310000259666","EUROTIENDAS DE NIC. S,A EUROTIENDAS DE NIC. S,A","DIRECCIÓN CLIENTE 209","MANAGUA","1234-5678"]
[210,"J0310000080763","EXPLOTEC SOCIEDAD ANONIMA EXPLOTEC S A","DIRECCIÓN CLIENTE 210","MASAYA","1234-5678"]
[211,"J0310000003998","EXPORTADORA ATLANTIC SOCIEDAD ANONIMA Página 6 EXPORTADORA ATLANTIC S.A.","DIRECCIÓN CLIENTE 211","CARAZO","1234-5678"]
[212,"J0310000287228","EXPORTADORA DE METALES SOCIEDAD ANONIMA","DIRECCIÓN CLIENTE 212","RIVAS","1234-5678"]
[213,"J0310000294097","EXPORTADORA E IMPORTADORA ALIANZA, SOCIEDAD ANONIMA EXIMALSA","DIRECCIÓN CLIENTE 213","ESTELÍ","1234-5678"]
[214,"J0310000115346","EXPORTADORA PANAMERICANA NORTE, SOCIEDAD ANONIMA EXPORTADORA PANAMERICANA NORTE, S.A","DIRECCIÓN CLIENTE 214","LEÓN","1234-5678"]
[215,"J0310000079617","FARMACEUTICOS Y CONEXOS SOCIEDAD ANONIMA FARCOSA","DIRECCIÓN CLIENTE 215","CHINANDEGA","1234-5678"]
[216,"J0310000170967","FARMACIAS EUROPEAS S.A FARMA VALUE","DIRECCIÓN CLIENTE 216","CORINTO","1234-5678"]
[217,"J0310000197849","FARMACIAS SABA SOCIEDAD ANONIMA FARMACIAS SABA S A","DIRECCIÓN CLIENTE 217","MANAGUA","1234-5678"]
[218,"J0310000126526","FARMADESCUENTO, S.A FARMADESCUENTO","DIRECCIÓN CLIENTE 218","MASAYA","1234-5678"]
[219,"J0510000000971","FERNANDO BALLADARES C. SUCESORES Y CIA LTDA INDIAN TRANSPORTES","DIRECCIÓN CLIENTE 219","CARAZO","1234-5678"]
[220,"J0310000002550","FERRETERIA JENNY, S.A. FERRETERIA JENNY, S.A.","DIRECCIÓN CLIENTE 220","RIVAS","1234-5678"]
[221,"J0310000001430","FERRETERIA RICHARDSON SOCIEDAD ANONIMA FERRETERIA RICHARDSON S.A.","DIRECCIÓN CLIENTE 221","ESTELÍ","1234-5678"]
[222,"J0310000002975","FERRETERIA TECNICA,SOCIEDAD ANONIMA FETESA","DIRECCIÓN CLIENTE 222","LEÓN","1234-5678"]
[223,"J0310000079994","FERROMAX SOCIEDAD ANONIMA FERROMAX S.A.","DIRECCIÓN CLIENTE 223","CHINANDEGA","1234-5678"]
[224,"J0310000112410","FERTICA DE NICARAGUA SOCIEDAD ANONIMA FERTICA DE NICARAGUA SOCIEDAD ANONIMA","DIRECCIÓN CLIENTE 224","CORINTO","1234-5678"]
[225,"J0310000245827","FID, SOCIEDAD ANONIMA FID, S.A","DIRECCIÓN CLIENTE 225","MANAGUA","1234-5678"]
[226,"J0310000005249","FINANCIERA FAMA SOCIEDAD ANONIMA. FINANCIERA FAMA","DIRECCIÓN CLIENTE 226","MASAYA","1234-5678"]
[227,"J0310000258368","FINANCIERA FONDO DE DESARROLLO LOCAL S,A FDL S,A","DIRECCIÓN CLIENTE 227","CARAZO","1234-5678"]
[228,"1630812660000W","FRANCISCO JAVIER GARMENDIA CALERO SURTIDORA DEL NORTE","DIRECCIÓN CLIENTE 228","RIVAS","1234-5678"]
[229,"J0210000122240","FRUTALES DEL SAN JUAN S.A. FRUTAN","DIRECCIÓN CLIENTE 229","ESTELÍ","1234-5678"]
[230,"J0310000057931","FUNDENUSE SOCIEDAD ANONIMA FUNDENUSE SOCIEDAD ANONIMA","DIRECCIÓN CLIENTE 230","LEÓN","1234-5678"]
[231,"J0310000000476","G4S SECURE SOLUTIONS NICARAGUA SOCIEDAD ANONIMA","DIRECCIÓN CLIENTE 231","CHINANDEGA","1234-5678"]
[232,"J0110000081167","GANADERIA INTEGRAL NICARAGUA SOCIEDAD ANONIMA GINSA","DIRECCIÓN CLIENTE 232","CORINTO","1234-5678"]
[233,"J0310000005001","GBM DE NICARAGUA SOCIEDAD ANONIMA GBM DE NICARAGUA S A","DIRECCIÓN CLIENTE 233","MANAGUA","1234-5678"]
[234,"J0310000004730","GENERADORA ELECTRICA OCCIDENTAL S.A. GEOSA","DIRECCIÓN CLIENTE 234","MASAYA","1234-5678"]
[235,"J0310000125627","GENERAL IMPORT SOCIEDAD ANONIMA GENERAL IMPORT S.A","DIRECCIÓN CLIENTE 235","CARAZO","1234-5678"]
[236,"J0310000001030","GENERIC PHARMA GP SA GENERIC PHARMA","DIRECCIÓN CLIENTE 236","RIVAS","1234-5678"]
[237,"2811502710018R","GEORGINA NORMA RUEDA MEDINA FARMACIA MERIDIONAL LA BARATERA","DIRECCIÓN CLIENTE 237","ESTELÍ","1234-5678"]
[238,"J0310000038074","GLOBAL BRANDS NICARAGUA S.A. GLOBAL BRANDS","DIRECCIÓN CLIENTE 238","LEÓN","1234-5678"]
[239,"J0310000035385","GLOBAL SUPPLY DE NICARAGUA, SOCIEDAD ANONIMA GLOBAL SUPPLY DE NICARAGUA","DIRECCIÓN CLIENTE 239","CHINANDEGA","1234-5678"]
[240,"J0310000000018","GLOBEX SOCIEDAD ANONIMA. GLOBEX S.A.","DIRECCIÓN CLIENTE 240","CORINTO","1234-5678"]
[241,"J0310000000492","GMG COMERCIAL NICARAGUA,SOCIEDAD ANONIMA. GMG COMERCIAL NICARAGUA S.A.","DIRECCIÓN CLIENTE 241","MANAGUA","1234-5678"]
[242,"J0310000005486","GMG SERVICIOS NICARAGUA S,A GMG SERVICIOS NICARAGUA","DIRECCIÓN CLIENTE 242","MASAYA","1234-5678"]
[243,"J0310000001499","GONZALEZ PEREIRA SOCIEDAD ANONIMA GONPER LIBRERIAS","DIRECCIÓN CLIENTE 243","CARAZO","1234-5678"]
[244,"J0310000212937","GRUPO ALIMENTICIO SOCIEDAD ANONIMA GRALSA","DIRECCIÓN CLIENTE 244","RIVAS","1234-5678"]
[245,"J0310000004951","GRUPO INDUSTRIAL EL GRANJERO SOCIEDAD ANONIMA GRUPO INDUSTRIAL EL GRANJERO S.A","DIRECCIÓN CLIENTE 245","ESTELÍ","1234-5678"]
[246,"J0310000124175","GRUPO MARAZUL,SOCIEDAD ANONIMA. GRUPO MARAZUL S.A.","DIRECCIÓN CLIENTE 246","LEÓN","1234-5678"]
[247,"J0310000110638","GRUPO MEGA SOCIEDAD ANONIMA Página 7 MEGABOUTIQUE","DIRECCIÓN CLIENTE 247","CHINANDEGA","1234-5678"]
[248,"J0310000003343","GRUPO Q NICARAGUA SOCIEDAD ANONIMA GRUPO Q NICARAGUA S.A.","DIRECCIÓN CLIENTE 248","CORINTO","1234-5678"]
[249,"J0310000309310","GRUPO UMA, SOCIEDAD ANONIMA GRUPO UMA","DIRECCIÓN CLIENTE 249","MANAGUA","1234-5678"]
[250,"J0310000001790","GSQ NICARAGUA, SOCIEDAD ANONIMA PINTURAS SUR","DIRECCIÓN CLIENTE 250","MASAYA","1234-5678"]
[251,"J0310000002290","GTM NICARAGUA SOCIEDAD ANONIMA GTM NICARAGUA","DIRECCIÓN CLIENTE 251","CARAZO","1234-5678"]
[252,"J0310000001049","HARINERA AGROINDUSTRIAL DE NICARAGUA S.A. HARINISA","DIRECCIÓN CLIENTE 252","RIVAS","1234-5678"]
[253,"J0310000003912","HEMCO NICARAGUA, SOCIEDAD ANONIMA HEMCO NICARAGUA, S.A.","DIRECCIÓN CLIENTE 253","ESTELÍ","1234-5678"]
[254,"J0910000063068","HERNANDEZ HERNANDEZ EXPORT Y COMPAÑIA LIMITADA HERNANDEZ HERNANDEZ EXPORT Y CIA LTDA","DIRECCIÓN CLIENTE 254","LEÓN","1234-5678"]
[255,"J0310000085803","HIDROPANTASMA,S.A. HIPSA.","DIRECCIÓN CLIENTE 255","CHINANDEGA","1234-5678"]
[256,"J0310000000794","HOLCIM NICARAGUA SOCIEDAD ANONIMA HOLCIM NICARAGUA S.A.","DIRECCIÓN CLIENTE 256","CORINTO","1234-5678"]
[257,"J0310000007063","HOTEL MONTELIMAR,SOCIEDAD ANONIMA HOTEL MONTELIMAR S.A.","DIRECCIÓN CLIENTE 257","MANAGUA","1234-5678"]
[258,"J0310000079200","IMPORTACIONES DE SARDINAS, ATUNES Y CARAMELOS S.A. ISAC, S.A.",{"$f":"+\"DIRECCIÓN CLIENTE \"&A259","v":"DIRECCIÓN CLIENTE 258"},"MASAYA","1234-5678"]
[259,"J0310000004013","IMPORTACIONES FARMACEUTICAS S.A IMFARSA","DIRECCIÓN CLIENTE 259","CARAZO","1234-5678"]
[260,"J0310000052123","IMPORTACIONES PUERTO PAIZ SOCIEDAD ANONIMA IMPPASA","DIRECCIÓN CLIENTE 260","RIVAS","1234-5678"]
[261,"J0310000004153","IMPORTADORA DISTRIBUIDORA OCAL S.A. OCAL S A","DIRECCIÓN CLIENTE 261","ESTELÍ","1234-5678"]
[262,"J0310000036861","INAUTO DE NICARAGUA S.A INAUTO S.A","DIRECCIÓN CLIENTE 262","LEÓN","1234-5678"]
[263,"J0310000003211","IND.CERAMICA CENTROAMERICANA SOCIEDAD ANONIMA INCESA STANDARD","DIRECCIÓN CLIENTE 263","CHINANDEGA","1234-5678"]
[264,"J0310000001731","INDUSTRIA CENTRO AMERICANA S.A INCASA","DIRECCIÓN CLIENTE 264","CORINTO","1234-5678"]
[265,"J0310000247897","INDUSTRIA GEMINA SOCIEDAD ANONIMA GEMINA","DIRECCIÓN CLIENTE 265","MANAGUA","1234-5678"]
[266,"J0310000002444","INDUSTRIA METAL MECANICA S A IMMSA","DIRECCIÓN CLIENTE 266","MASAYA","1234-5678"]
[267,"J0310000004811","INDUSTRIA NACIONAL DE REFRESCOS SOCIEDAD ANONIMA. COCA COLA","DIRECCIÓN CLIENTE 267","CARAZO","1234-5678"]
[268,"J0310000001200","INDUSTRIA NICARAGUENSE DE DERIVADOS GRASOS S.A INDEGRASA","DIRECCIÓN CLIENTE 268","RIVAS","1234-5678"]
[269,"J0310000000875","INDUSTRIA SAN FRANCISCO, SOCIEDAD ANONIMA. I.S.F. S.A","DIRECCIÓN CLIENTE 269","ESTELÍ","1234-5678"]
[270,"J0310000005680","INDUSTRIAL COMERCIAL SAN MARTIN,SOCIEDAD ANONIMA INDUSTRIAL COMERCIAL SAN MARTIN, S.A.","DIRECCIÓN CLIENTE 270","LEÓN","1234-5678"]
[271,"J0310000012920","INDUSTRIAS ACEITERAS, SOCIEDAD ANONIMA.","DIRECCIÓN CLIENTE 271","CHINANDEGA","1234-5678"]
[272,"J0310000005052","INDUSTRIAS CARNICAS INTEGRADAS DE NICARAGUA S.A. INDUSTRIAS CARNICAS","DIRECCIÓN CLIENTE 272","CORINTO","1234-5678"]
[273,"J0310000003718","INDUSTRIAS DELMOR S A DELMOR,S.A","DIRECCIÓN CLIENTE 273","MANAGUA","1234-5678"]
[274,"J0310000005125","INDUSTRIAS FATIMA,SOCIEDAD ANONIMA INDUSTRIAS FATIMA S.A.","DIRECCIÓN CLIENTE 274","MASAYA","1234-5678"]
[275,"J0310000064385","INDUSTRIAS MAGAÑA L SOCIEDAD ANONIMA INDUSTRIAS MAGAÑA L SOCIEDAD ANONIMA","DIRECCIÓN CLIENTE 275","CARAZO","1234-5678"]
[276,"J0310000034281","INKIA NICARAGUA SOCIEDAD ANONIMA INKIA NICARAGUA S. A.","DIRECCIÓN CLIENTE 276","RIVAS","1234-5678"]
[277,"J0310000005664","INMOBILIARIA SANTO DOMINGO,SOCIEDAD ANONIMA GALERIA SANTO DOMINGO","DIRECCIÓN CLIENTE 277","ESTELÍ","1234-5678"]
[278,"J0310000008043","INMUEBLES DIANO MARINA,SOCIEDAD ANONIMA. INDIMASA","DIRECCIÓN CLIENTE 278","LEÓN","1234-5678"]
[279,"J0110000049697","INSECTICIDAS SAN CRISTOBAL S.A. INSECTICIDAS SAN CRISTOBAL S.A.","DIRECCIÓN CLIENTE 279","CHINANDEGA","1234-5678"]
[280,"J0310000115168","INSTACREDIT SOCIEDAD ANONIMA INSTACREDIT S.A","DIRECCIÓN CLIENTE 280","CORINTO","1234-5678"]
[281,"J0310000027587","INVERSIONES ARROCERAS SOCIEDAD ANONIMA INAROSA","DIRECCIÓN CLIENTE 281","MANAGUA","1234-5678"]
[282,"J0310000006024","INVERSIONES BURSEY WYSS S.A. I . B. W.","DIRECCIÓN CLIENTE 282","MASAYA","1234-5678"]
[283,"J0310000120803","INVERSIONES FRESCAMAR SOCIEDAD ANONIMA Página 8 INVERSIONES FRESCAMAR S.A.","DIRECCIÓN CLIENTE 283","CARAZO","1234-5678"]
[284,"J0310000080704","INVERSIONES LA ESTRELLA SOCIEDAD ANONIMA LA ESTRELLA S.A.","DIRECCIÓN CLIENTE 284","RIVAS","1234-5678"]
[285,"J0310000001871","INVERSIONES LAMA NICARAGUA,SOCIEDAD ANONIMA. PIZZA HUT","DIRECCIÓN CLIENTE 285","ESTELÍ","1234-5678"]
[286,"J0310000183430","INVERSIONES SECOYA, SOCIEDAD ANONIMA INVERSIONES SECOYA, S.A.","DIRECCIÓN CLIENTE 286","LEÓN","1234-5678"]
[287,"J0310000013853","INVERSIONES Y DESARROLLOS COMERCIALES S A INDECO, S A","DIRECCIÓN CLIENTE 287","CHINANDEGA","1234-5678"]
[288,"J0310000005397","INVERSIONES Y NEGOCIOS DE NICARAGUA,S.A. INDENICSA","DIRECCIÓN CLIENTE 288","CORINTO","1234-5678"]
[289,"J0310000038031","INVERSIONES Y NEGOCIOS NICARAGUENSES S.A INENIC S.A","DIRECCIÓN CLIENTE 289","MANAGUA","1234-5678"]
[290,"J0310000128456","INVERSIONES Y PRODUCTOS DE CENTROAMERICA, SOCIEDAD ANONIMA INPROCEAMERICA","DIRECCIÓN CLIENTE 290","MASAYA","1234-5678"]
[291,"J0910000203579","JAIME LANUZA CERRATO Y XIOMARA GUADALUPE GONZALEZ Y COMPAÑÍA LIMITADA","DIRECCIÓN CLIENTE 291","CARAZO","1234-5678"]
[292,"4920312640000T","JAVIER GADEA ZELEDON AGROJGZ","DIRECCIÓN CLIENTE 292","RIVAS","1234-5678"]
[293,"0010511710049S","JINNAH FARROUCK SIRKER POLANCO UNO PAKISTAN","DIRECCIÓN CLIENTE 293","ESTELÍ","1234-5678"]
[294,"J0310000002126","JOHN HEAD, SISTEMAS CONSTRUCTIVOS Y EQUIPOS,S.A. JOHN HEAD,S.A.","DIRECCIÓN CLIENTE 294","LEÓN","1234-5678"]
[295,"5612011961000M","JOSE DANIEL CRUZ LOPEZ IMPORTACION Y EXPORTACION","DIRECCIÓN CLIENTE 295","CHINANDEGA","1234-5678"]
[296,"4453011590000F","JUAN ALBERTO CAJINA MARTINEZ MATERIALES DE CONSTRUCCION EL HALCON","DIRECCIÓN CLIENTE 296","CORINTO","1234-5678"]
[297,"J0310000045879","JUAN Y MIRIAM FAMILY COFFEE SOCIEAD ANONIMA","DIRECCIÓN CLIENTE 297","MANAGUA","1234-5678"]
[298,"J0310000004005","JULIO MARTINEZ,REPUESTOS,S.A. JULIO MARTINEZ,REPUESTOS,S.A.","DIRECCIÓN CLIENTE 298","MASAYA","1234-5678"]
[299,"J0310000116814","KIELSA FARMACEUTICA NICARAGUA SOCIEDAD ANONIMA KIELSA","DIRECCIÓN CLIENTE 299","CARAZO","1234-5678"]
[300,"J0310000298874","KIPESA, SOCIEDAD ANONIMA KIPESA S.A.","DIRECCIÓN CLIENTE 300","RIVAS","1234-5678"]
[301,"J0310000077061","KLUANE NICARAGUA SOCIEDAD ANONIMA KLUANE NICARAGUA SA","DIRECCIÓN CLIENTE 301","ESTELÍ","1234-5678"]
[302,"J0310000006148","KOLA SHALER INDUSTRIAL SOCIEDAD ANONIMA KOLA SHALER S,A.","DIRECCIÓN CLIENTE 302","LEÓN","1234-5678"]
[303,"J0310000222215","KOREA NICARAGUA SOCIEDAD ANONIMA KOREA NICARAGUA SOCIEDAD ANONIMA","DIRECCIÓN CLIENTE 303","CHINANDEGA","1234-5678"]
[304,"J0310000100004","KOREAN CABLE SOCIEDAD ANONIMA KOCASA","DIRECCIÓN CLIENTE 304","CORINTO","1234-5678"]
[305,"J0310000030944","LA MONTAÑA S.A. LA MONTAÑA S.A","DIRECCIÓN CLIENTE 305","MANAGUA","1234-5678"]
[306,"J0310000001596","LA PALETA SOCIEDAD ANONIMA PALETA,S.A","DIRECCIÓN CLIENTE 306","MASAYA","1234-5678"]
[307,"J0310000003262","LABORATORIOS CEGUEL S.A CEGUEL","DIRECCIÓN CLIENTE 307","CARAZO","1234-5678"]
[308,"J0110000116114","LABORATORIOS QUIMICO FARMACEUTICOS LANCASCO S.A LANCASCO S.A.","DIRECCIÓN CLIENTE 308","RIVAS","1234-5678"]
[309,"J0210000150015","LABORATORIOS RAMOS, S.A. LABORATORIOS RAMOS","DIRECCIÓN CLIENTE 309","ESTELÍ","1234-5678"]
[310,"J0310000018880","LACTEOS , SOCIEDAD ANONIMA LACTEOSSA","DIRECCIÓN CLIENTE 310","LEÓN","1234-5678"]
[311,"J0310000002800","LACTEOS CENTROAMERICANOS SOCIEDAD ANONIMA CENTROLAC S,A","DIRECCIÓN CLIENTE 311","CHINANDEGA","1234-5678"]
[312,"J0310000282013","LACTEOS JMJ COMERCIAL,SOCIEDAD ANONIMA LACTEOS JMJ COMERCIAL S.A","DIRECCIÓN CLIENTE 312","CORINTO","1234-5678"]
[313,"J0310000177678","LALA NICARAGUA, SOCIEDAD ANONIMA LALA NICARAGUA","DIRECCIÓN CLIENTE 313","MANAGUA","1234-5678"]
[314,"J0310000081956","LANCO NICARAGUA SOCIEDAD ANONIMA LANCO NICARAGUA S A","DIRECCIÓN CLIENTE 314","MASAYA","1234-5678"]
[315,"J0310000067538","LETERAGO S.A LETERAGO","DIRECCIÓN CLIENTE 315","CARAZO","1234-5678"]
[316,"J0310000021660","LGB NICARAGUA SOCIEDAD ANONIMA LGB NICARAGUA S A","DIRECCIÓN CLIENTE 316","RIVAS","1234-5678"]
[317,"J0310000000816","LIBRERIA HISPANOAMERICANA, S.A. HISPAMER, S.A.","DIRECCIÓN CLIENTE 317","ESTELÍ","1234-5678"]
[318,"J0310000004773","LIBRERIA Y DISTRIBUIDORA JARDIN S A Página 9 LYDIJA S.A.","DIRECCIÓN CLIENTE 318","LEÓN","1234-5678"]
[319,"J0310000106312","LOS PAISAS, S.A. LOS PAISAS SA","DIRECCIÓN CLIENTE 319","CHINANDEGA","1234-5678"]
[320,"J0310000011869","LUBRICANTES DE NICARAGUA, S.A. LUBNICA","DIRECCIÓN CLIENTE 320","CORINTO","1234-5678"]
[321,"J0310000137773","LUCALZA NICARAGUA, SOCIEDAD ANONIMA LUCALZA S.A.","DIRECCIÓN CLIENTE 321","MANAGUA","1234-5678"]
[322,"J0310000227519","LUDWIG PFEIFFER HOCH UND TIEFBAU GMBH Y CO.KG SUCURSAL NICARAGUA",{"$f":"+\"DIRECCIÓN CLIENTE \"&A323","v":"DIRECCIÓN CLIENTE 322"},"MASAYA","1234-5678"]
[323,"J0310000017581","MAGNA S A MAGNA S A","DIRECCIÓN CLIENTE 323","CARAZO","1234-5678"]
[324,"J0310000372306","MAKIBER SOCIEDAD ANONIMA MAKIBER S,A","DIRECCIÓN CLIENTE 324","RIVAS","1234-5678"]
[325,"J0310000129150","MANPOWER DE NICARAGUA SOCIEDAD ANONIMA MANPOWER,S.A.","DIRECCIÓN CLIENTE 325","ESTELÍ","1234-5678"]
[326,"J0310000001286","MAPFRE SEGUROS NICARAGUA SOCIEDAD ANONIMA MAPFRE SEGUROS NICARAGUA S.A","DIRECCIÓN CLIENTE 326","LEÓN","1234-5678"]
[327,"J0310000005826","MAQUINARIA H.F CROSS S.A CASA CROSS","DIRECCIÓN CLIENTE 327","CHINANDEGA","1234-5678"]
[328,"J0310000125864","MAQUINARIA Y EQUIPOS,SOCIEDAD ANONIMA. MAQUIPOS,S.A.","DIRECCIÓN CLIENTE 328","CORINTO","1234-5678"]
[329,"5623009770001F","MARIA ALEJANDRA BALDIZON ARAUZ IMPORTACIONES Y EXPORTACIONES BALDIZON","DIRECCIÓN CLIENTE 329","MANAGUA","1234-5678"]
[330,"J0310000032904","MARINA DE GUACALITO S.A. MAGUASA S.A.","DIRECCIÓN CLIENTE 330","MASAYA","1234-5678"]
[331,"J0310000035393","MARISCOS PROCESADOS SOCIEDAD ANONIMA CAMPRESA S.A.","DIRECCIÓN CLIENTE 331","CARAZO","1234-5678"]
[332,"J0310000038627","MASTER CONSTRUCTION SOCIEDAD ANONIMA MC S.A","DIRECCIÓN CLIENTE 332","RIVAS","1234-5678"]
[333,"J0310000096783","MATADERO CACIQUE SOCIEDAD ANONIMA MATADERO CACIQUE S.A","DIRECCIÓN CLIENTE 333","ESTELÍ","1234-5678"]
[334,"J0310000004862","MATADERO CENTRAL SOCIEDAD ANONIMA","DIRECCIÓN CLIENTE 334","LEÓN","1234-5678"]
[335,"0010810550055L","MAURICIO JOSE MARTINICA OSORIO MAURICIO JOSE MARTINICA","DIRECCIÓN CLIENTE 335","CHINANDEGA","1234-5678"]
[336,"J0310000244987","MAYACERO DE NICARAGUA SA MAYACERO SA","DIRECCIÓN CLIENTE 336","CORINTO","1234-5678"]
[337,"J0310000000387","MAYOREO DEL NORTE BRAVO Y BRENES S.A MAYON B Y B S A","DIRECCIÓN CLIENTE 337","MANAGUA","1234-5678"]
[338,"J0310000000697","MCDONALD'S SISTEMA DE NICARAGUA SOCIEDAD ANONIMA MCDONALD'S","DIRECCIÓN CLIENTE 338","MASAYA","1234-5678"]
[339,"J0310000179549","MEDITERRANEAN SHIPPING CO NICARAGUA, S.A. MSC DE NICARAGUA","DIRECCIÓN CLIENTE 339","CARAZO","1234-5678"]
[340,"J0310000047804","MELONES DE NICARAGUA SOCIEDAD ANONIMA MELONICSA","DIRECCIÓN CLIENTE 340","RIVAS","1234-5678"]
[341,"J0310000113386","MERCADEO CENTROAMERICANO DE LUBRICANTES S A MERCALSA","DIRECCIÓN CLIENTE 341","ESTELÍ","1234-5678"]
[342,"J0310000034273","MERCANTIL DE COMERCIO NICARAGUENSE, S.A. MERCONICA S A","DIRECCIÓN CLIENTE 342","LEÓN","1234-5678"]
[343,"J0310000004056","METALES NICARAGUENSES SOCIEDAD ANONIMA METALNIC S.A","DIRECCIÓN CLIENTE 343","CHINANDEGA","1234-5678"]
[344,"J0310000002193","MEXICHEM NICARAGUA SOCIEDAD ANONIMA MEXICHEM SA","DIRECCIÓN CLIENTE 344","CORINTO","1234-5678"]
[345,"J0310000213038","MICROFINANCIERA FUNDESER SOCIEDAD ANONIMA MICROFINANCIERA FUNDESER","DIRECCIÓN CLIENTE 345","MANAGUA","1234-5678"]
[346,"4412909600008Y","MIGUEL ANGEL BENITEZ GUEVARA LACTEOS NUEVA GUINEA","DIRECCIÓN CLIENTE 346","MASAYA","1234-5678"]
[347,"J0310000174598","MOFE, SOCIEDAD ANONIMA MOFESA","DIRECCIÓN CLIENTE 347","CARAZO","1234-5678"]
[348,"J0310000003386","MOLINOS DE NIC S A M O N I S A","DIRECCIÓN CLIENTE 348","RIVAS","1234-5678"]
[349,"J0310000145172","MOMENTUM DEVELOPMENT, SOCIEDAD ANONIMA LAS PALMAS CASINO","DIRECCIÓN CLIENTE 349","ESTELÍ","1234-5678"]
[350,"J0310000002525","MOMOTOMBO POWER COMPANY MOMOTOMBO POWER COMPANY","DIRECCIÓN CLIENTE 350","LEÓN","1234-5678"]
[351,"J0310000002797","MONDELEZ NICARAGUA SOCIEDAD ANONIMA MONDELEZ NICARAGUA S.A.","DIRECCIÓN CLIENTE 351","CHINANDEGA","1234-5678"]
[352,"J0310000005265","MONTE ROSA, SOCIEDAD ANONIMA. MONTE ROSA, S.A.","DIRECCIÓN CLIENTE 352","CORINTO","1234-5678"]
[353,"J0310000000379","MORA VIJIL SOCIEDAD ANONIMA Página 10 MOVI S A","DIRECCIÓN CLIENTE 353","MANAGUA","1234-5678"]
[354,"J0310000149925","MOTOKING INTERNATIONAL S A M.I.S.A","DIRECCIÓN CLIENTE 354","MASAYA","1234-5678"]
[355,"J0310000060517","MULTIPERFILES SOCIEDAD ANONIMA MULTIPERFILES","DIRECCIÓN CLIENTE 355","CARAZO","1234-5678"]
[356,"4412004460009Y","MURIEL HERRERA DE CALERO ESSO LAS MARIAS","DIRECCIÓN CLIENTE 356","RIVAS","1234-5678"]
[357,"J0310000126593","NACEL DE NICARAGUA SOCIEDAD ANONIMA NACEL DE NICARAGUA S A","DIRECCIÓN CLIENTE 357","ESTELÍ","1234-5678"]
[358,"J0310000139946","NEO ETHICALS,S.A NEO ETHICALS, S.A","DIRECCIÓN CLIENTE 358","LEÓN","1234-5678"]
[359,"J0310000001863","NESTLE NICARAGUA S A NESTLE S.A","DIRECCIÓN CLIENTE 359","CHINANDEGA","1234-5678"]
[360,"J0310000001146","NEWCOM NICARAGUA,SOCIEDAD ANONIMA NEWCOM NICARAGUA,S.A.","DIRECCIÓN CLIENTE 360","CORINTO","1234-5678"]
[361,"J0310000098387","NICA BEEF PACKERS, SOCIEDAD ANONIMA NICA BEEF PACKERS,SOCIEDAD ANONIMA","DIRECCIÓN CLIENTE 361","MANAGUA","1234-5678"]
[362,"J0310000264023","NICA TRADING COMPANY SOCIEDAD ANONIMA NICA TRANDING COMPANY S.A.","DIRECCIÓN CLIENTE 362","MASAYA","1234-5678"]
[363,"J0310000002932","NICARAGUA MACHINERY COMPANY NIMAC","DIRECCIÓN CLIENTE 363","CARAZO","1234-5678"]
[364,"J0110000002089","NICARAGUA SUGAR ESTATES LIMITED INGENIO SAN ANTONIO","DIRECCIÓN CLIENTE 364","RIVAS","1234-5678"]
[365,"J0210000122453","NICARAGUAN TILAPIA S A NICALAPIA S A","DIRECCIÓN CLIENTE 365","ESTELÍ","1234-5678"]
[366,"J0310000006547","NILAC SOCIEDAD ANONIMA NILAC, S.A.","DIRECCIÓN CLIENTE 366","LEÓN","1234-5678"]
[367,"J0210000162307","NIPRO MEDICAL CORPORATION NIPRO MEDICAL CORPORATION","DIRECCIÓN CLIENTE 367","CHINANDEGA","1234-5678"]
[368,"J0310000123438","NORTH ATLANTIC FISHING COMPANY SOCIEDAD ANONIMA NAFCOSA","DIRECCIÓN CLIENTE 368","CORINTO","1234-5678"]
[369,"J0310000005184","NOVATERRA SOCIEDAD ANONIMA NOVATERRA S.A.","DIRECCIÓN CLIENTE 369","MANAGUA","1234-5678"]
[370,"J0310000000646","NUEVO CARNIC SOCIEDAD ANONIMA. CARNIC S A","DIRECCIÓN CLIENTE 370","MASAYA","1234-5678"]
[371,"J0310000136017","NUEVO HOSPITAL MONTE ESPANA S.A NUEVO HOSPITAL MONTE ESPANA S.A","DIRECCIÓN CLIENTE 371","CARAZO","1234-5678"]
[372,"J0310000022437","OBRAS DE INGENIERIA SOCIEDAD ANONIMA OBRINSA","DIRECCIÓN CLIENTE 372","RIVAS","1234-5678"]
[373,"J0310000219532","OCEANICA INTERNACIONAL SOCIEDAD ANONIMA OCEANICA INTERNACIONAL S.A","DIRECCIÓN CLIENTE 373","ESTELÍ","1234-5678"]
[374,"J0310000227276","OLAM NICARAGUA SOCIEDAD ANONIMA OLAM","DIRECCIÓN CLIENTE 374","LEÓN","1234-5678"]
[375,"J0310000005966","ORIFLAME DE NICARAGUA SOCIEDAD ANONIMA ORIFLAME S.A.","DIRECCIÓN CLIENTE 375","CHINANDEGA","1234-5678"]
[376,"J0310000002711","PACIFIC SEAFOODS DE NICARAGUA SOCIEDAD ANONIMA PASENIC S A","DIRECCIÓN CLIENTE 376","CORINTO","1234-5678"]
[377,"J0310000121389","PALMARES DEL CASTILLO, SOCIEDAD ANONIMA PALCASA","DIRECCIÓN CLIENTE 377","MANAGUA","1234-5678"]
[378,"J0310000022763","PAPELERA LATINOAMERICANA DE NICARAGUA,S.A PAPELERA LATINOAMERICANA DE NICARAGUA,S.A","DIRECCIÓN CLIENTE 378","MASAYA","1234-5678"]
[379,"J0510000000700","PAYLESS SHOESOURCE LIMITADA Y CIA LTDA PAYLESS SHOESOURCE","DIRECCIÓN CLIENTE 379","CARAZO","1234-5678"]
[380,"J0310000161100","PETROLEOS LATINOAMERICANOS, SOCIEDAD ANONIMA PETROLAT","DIRECCIÓN CLIENTE 380","RIVAS","1234-5678"]
[381,"J0310000003106","PHILIP MORRIS NICARAGUA S A PHILIP MORRIS NICARAGUA S A","DIRECCIÓN CLIENTE 381","ESTELÍ","1234-5678"]
[382,"J0310000009074","PINTURA MODELO S.A PINTURA MODELO","DIRECCIÓN CLIENTE 382","LEÓN","1234-5678"]
[383,"J0310000000557","PIONERA MAQUILADORA TEXTIL S A PIMATEX S A","DIRECCIÓN CLIENTE 383","CHINANDEGA","1234-5678"]
[384,"J0310000192847","PLANTEL LOS ANGELES SOCIEDAD ANONIMA PLANTEL LOS ANGELES S A","DIRECCIÓN CLIENTE 384","CORINTO","1234-5678"]
[385,"J0310000000336","POLARIS ENERGY NICARAGUA SOCIEDAD ANONIMA POLARIS ENERGY NICARAGUA S A","DIRECCIÓN CLIENTE 385","MANAGUA","1234-5678"]
[386,"J0310000209537","PRAGA CORPORACION SOCIEDAD ANONIMA FARMACIAS PRAGA PRAGA CORPORACION S.A",{"$f":"+\"DIRECCIÓN CLIENTE \"&A387","v":"DIRECCIÓN CLIENTE 386"},"MASAYA","1234-5678"]
[387,"J0310000317194","PRD TRADING SOCIEDAD ANONIMA PRD TRADING, S.A.","DIRECCIÓN CLIENTE 387","CARAZO","1234-5678"]
[388,"J0310000126160","PRETENSADO NICARAGUENSE SOCIEDAD ANONIMA PRENIC S.A","DIRECCIÓN CLIENTE 388","RIVAS","1234-5678"]
[389,"J0910000063726","PRO MUJER, NICARAGUA, LLC. PRO MUJER NICARAGUA LLC.","DIRECCIÓN CLIENTE 389","ESTELÍ","1234-5678"]
[390,"J0310000006202","PRODUCTIVE BUSINESS SOLUTIONS NICARAGUA S.A. PBS NICARAGUA S.A.","DIRECCIÓN CLIENTE 390","LEÓN","1234-5678"]
[391,"J0310000214956","PRODUCTORA DE PLASTICOS SOCIEDAD ANONIMA PRODUCTORA DE PLASTICOS S,A","DIRECCIÓN CLIENTE 391","CHINANDEGA","1234-5678"]
[392,"J0320000004973","PRODUCTOS AVON DE NICARAGUA SOCIEDAD ANONIMA AVON DE NICARAGUA","DIRECCIÓN CLIENTE 392","CORINTO","1234-5678"]
[393,"J0310000002843","PRODUCTOS DEL AIRE DE NICARAGUA SOCIEDAD ANONIMA PRODUCTOS DEL AIRE DE NICARAGUA S A","DIRECCIÓN CLIENTE 393","MANAGUA","1234-5678"]
[394,"J0310000049033","PRODUCTOS FORESTALES Y AGROPECUARIOS, S.A. PROFYSA","DIRECCIÓN CLIENTE 394","MASAYA","1234-5678"]
[395,"J0310000004161","PRODUCTOS INDUSTRIALES DE CONCRETO, S.A PROINCO, S.A","DIRECCIÓN CLIENTE 395","CARAZO","1234-5678"]
[396,"J0910000055731","PRODUCTOS LACTEOS MATIGUAS Y COMPAÑIA LIMITADA PRODUCTOS LACTEOS MATIGUAS Y COMPAÑIA LIMITADA","DIRECCIÓN CLIENTE 396","RIVAS","1234-5678"]
[397,"J0310000242607","PROFESIONALES DE LA CONSTRUCCION S.A DE C.V PRODECON S.A DE C.V","DIRECCIÓN CLIENTE 397","ESTELÍ","1234-5678"]
[398,"J0310000002860","PROGRAMA PRIVADO DE ATENCION MEDICA ESPECIALIZADA PAME S.A","DIRECCIÓN CLIENTE 398","LEÓN","1234-5678"]
[399,"J0310000005974","PROHARINA SOCIEDAD ANONIMA PROHARINA S.A .","DIRECCIÓN CLIENTE 399","CHINANDEGA","1234-5678"]
[400,"J0310000005036","PSMT NICARAGUA SOCIEDAD ANONIMA PRICESMART","DIRECCIÓN CLIENTE 400","CORINTO","1234-5678"]
[401,"J0310000003114","PUERTO CABEZA POWER SOCIEDAD ANONIMA. PUERTO CABEZA POWER S.A.","DIRECCIÓN CLIENTE 401","MANAGUA","1234-5678"]
[402,"J0310000003645","PUMA ENERGY BAHAMAS, S.A PUMA","DIRECCIÓN CLIENTE 402","MASAYA","1234-5678"]
[403,"J0310000055327","PUNTO IDEAL SOCIEDAD ANONIMA PUNTO IDEAL S.A.","DIRECCIÓN CLIENTE 403","CARAZO","1234-5678"]
[404,"J0510000000505","PUSCHENDORF, CO. LTDA PUSCHENDORF, CO. LTDA","DIRECCIÓN CLIENTE 404","RIVAS","1234-5678"]
[405,"J0310000153477","QUATTROAGRO SOCIEDAD ANONIMA QUATTROAGRO S.A.","DIRECCIÓN CLIENTE 405","ESTELÍ","1234-5678"]
[406,"J0310000084173","RAM INTERNACIONAL S A RAMSA","DIRECCIÓN CLIENTE 406","LEÓN","1234-5678"]
[407,"J0310000358974","RAPICOMER SOCIEDAD ANONIMA","DIRECCIÓN CLIENTE 407","CHINANDEGA","1234-5678"]
[408,"J0310000032777","RAPPACCIOLI MCGREGOR, SOCIEDAD ANONIMA RAMAC","DIRECCIÓN CLIENTE 408","CORINTO","1234-5678"]
[409,"J0310000001367","REPRESENTACIONES FARMACEUTICAS DE NICARAGUA,S.A. REFANIC S.A","DIRECCIÓN CLIENTE 409","MANAGUA","1234-5678"]
[410,"J0310000169683","REPUESTOS MANAGUA SOCIEDAD ANONIMA REMASA","DIRECCIÓN CLIENTE 410","MASAYA","1234-5678"]
[411,"J0310000050236","RITTER SPORT NICARAGUA SOCIEDAD ANONIMA RITTER SPORT NICARAGUA S.A","DIRECCIÓN CLIENTE 411","CARAZO","1234-5678"]
[412,"J0310000324425","RIVER GOLD SOCIEDAD ANONIMA ORO DE RIO","DIRECCIÓN CLIENTE 412","RIVAS","1234-5678"]
[413,"0012301810023J","ROBERTO ALEJANDRO BLANDON GUTIERREZ ROBERTO ALEJANDRO BLANDON GUTIERREZ","DIRECCIÓN CLIENTE 413","ESTELÍ","1234-5678"]
[414,"J0310000034184","RODIO SWISSBORING NICARAGUA SOCIEDAD ANONIMA RODIO SWISSBORING","DIRECCIÓN CLIENTE 414","LEÓN","1234-5678"]
[415,"J0310000006423","SACOS DE NICARAGUA SOCIEDAD ANONIMA SACOS MACEN","DIRECCIÓN CLIENTE 415","CHINANDEGA","1234-5678"]
[416,"J0310000328285","SACOS DEL CAMPO,SOCIEDAD ANONIMA SACOS DEL CAMPO S.A","DIRECCIÓN CLIENTE 416","CORINTO","1234-5678"]
[417,"J0310000000581","SAGSA DISAGRO SOCIEDAD ANONIMA SAGSA","DIRECCIÓN CLIENTE 417","MANAGUA","1234-5678"]
[418,"J0310000032548","SAHLMAN SEAFOODS OF NICARAGUA,SOCIEDAD ANONIMA. SAHLMAN SEAFOODS OF NICARAGUA S,A.","DIRECCIÓN CLIENTE 418","MASAYA","1234-5678"]
[419,"J0310000113793","SAJONIA ESTATE COFFEE, SOCIEDAD ANONIMA SAJONIA COFFEE","DIRECCIÓN CLIENTE 419","CARAZO","1234-5678"]
[420,"J0310000002070","SALUD INTEGRAL S.A HOSPITAL SALUD INTEGRAL S.A.","DIRECCIÓN CLIENTE 420","RIVAS","1234-5678"]
[421,"J0310000000441","SAMUEL MANSELL SOCIEDAD ANONIMA","DIRECCIÓN CLIENTE 421","ESTELÍ","1234-5678"]
[422,"J0310000019975","SAN JOSE, SOCIEDAD ANONIMA SAN JOSE S,A","DIRECCIÓN CLIENTE 422","LEÓN","1234-5678"]
[423,"J0310000018057","SAN MIGUEL INDUSTRIAS NICARAGUA SOCIEDAD ANONIMA Página 12 SMI NICARAGUA S.A.","DIRECCIÓN CLIENTE 423","CHINANDEGA","1234-5678"]
[424,"J0310000049300","SBA TORRES NICARAGUA SOCIEDAD ANONIMA SBA TORRES NICARAGUA S A","DIRECCIÓN CLIENTE 424","CORINTO","1234-5678"]
[425,"J0310000000450","SEAFOOD, INTERNATIONAL COMPANY SOCIEDAD ANONIMA SEAFOOD, S.A.","DIRECCIÓN CLIENTE 425","MANAGUA","1234-5678"]
[426,"J0310000146276","SEGURIDAD DELTA SOCIEDAD ANONIMA DELTA SA","DIRECCIÓN CLIENTE 426","MASAYA","1234-5678"]
[427,"J0310000000999","SEGUROS LAFISE SOCIEDAD ANONIMA SEGUROS LAFISE","DIRECCIÓN CLIENTE 427","CARAZO","1234-5678"]
[428,"J0310000156166","SEMILLAS ACUATICAS SOCIEDAD ANONIMA SEMILLAS ACUATICAS S.A","DIRECCIÓN CLIENTE 428","RIVAS","1234-5678"]
[429,"J0310000001782","SERVICIO DE VIGILANCIA Y PROTECCION,S,A. SERVIPRO S.A","DIRECCIÓN CLIENTE 429","ESTELÍ","1234-5678"]
[430,"J0310000237395","SERVICIOS DE CONSTRUCCION E INGENERIA SOCIEDAD ANONIMA SERCONISA","DIRECCIÓN CLIENTE 430","LEÓN","1234-5678"]
[431,"J0310000125392","SERVICIOS DIVERSOS DE RECURSOS HUMANOS S.A SERVICIOS DIVERSOS DE RECURSOS HUMANOS S.A","DIRECCIÓN CLIENTE 431","CHINANDEGA","1234-5678"]
[432,"J0310000146055","SERVICIOS ELECTRICOS PROFESIONALES S.A. SEPSA","DIRECCIÓN CLIENTE 432","CORINTO","1234-5678"]
[433,"J0310000153957","SERVICIOS INDUSTRIALES AUTOMOTRICES, S.A. SIASA","DIRECCIÓN CLIENTE 433","MANAGUA","1234-5678"]
[434,"J0310000161437","SERVICIOS MEDICOS ESPECIALIZADOS S.A SERMESA","DIRECCIÓN CLIENTE 434","MASAYA","1234-5678"]
[435,"J0310000144362","SERVICIOS PROFESIONALES E IMPORTACIONES S,A SERPROIM S,A","DIRECCIÓN CLIENTE 435","CARAZO","1234-5678"]
[436,"J0310000156360","SEVA SOCIEDAD ANONIMA SEVASA","DIRECCIÓN CLIENTE 436","RIVAS","1234-5678"]
[437,"J0310000006008","SIGMA ALIMENTOS NICARAGUA, SOCIEDAD ANONIMA SIGMA NICARAGUA,S.A","DIRECCIÓN CLIENTE 437","ESTELÍ","1234-5678"]
[438,"J0310000001812","SILVA INTERNACIONAL SOCIEDAD ANONIMA. S I N S A","DIRECCIÓN CLIENTE 438","LEÓN","1234-5678"]
[439,"J0310000001057","SISTEMAS MODERNOS DE CONSTRUCCION DE NIC S A COPERCO DE NICARAGUA S A","DIRECCIÓN CLIENTE 439","CHINANDEGA","1234-5678"]
[440,"J0310000001502","SOLUCIONES SEGURAS SOCIEDAD ANONIMA SOLSESA","DIRECCIÓN CLIENTE 440","CORINTO","1234-5678"]
[441,"J0310000120862","SOLUCIONES VIALES, SOCIEDAD ANONIMA SOVIALSA","DIRECCIÓN CLIENTE 441","MANAGUA","1234-5678"]
[442,"J0310000006660","SUNLINE INTERNACIONAL, SOC. ANONIMA O SINTER, S.A. SINTER, S.A","DIRECCIÓN CLIENTE 442","MASAYA","1234-5678"]
[443,"J0310000001995","SUPER FARMACIA XOLOTLAN SOCIEDAD ANONIMA FARMACIAS XOLOTLAN S,A.","DIRECCIÓN CLIENTE 443","CARAZO","1234-5678"]
[444,"J0310000034788","TABACALERA CUBANA NICARAGUENSE SOCIEDAD ANONIMA T A C U N I S A","DIRECCIÓN CLIENTE 444","RIVAS","1234-5678"]
[445,"J0310000022976","TABACOS CUBANICA SOCIEDAD ANONIMA TACUNISA","DIRECCIÓN CLIENTE 445","ESTELÍ","1234-5678"]
[446,"J0110000046914","TABACOS DE ORIENTE DE NICARAGUA SA TABACOS DE ORIENTE DE NICARAGUA SA","DIRECCIÓN CLIENTE 446","LEÓN","1234-5678"]
[447,"J0210000068343","TABACOS VALLE DE JALAPA SOCIEDAD ANONIMA TABACOS VALLE DE JALAPA","DIRECCIÓN CLIENTE 447","CHINANDEGA","1234-5678"]
[448,"J0310000004749","TACA INTERNATIONAL AIRLINES SOCIEDAD ANONIMA. TACA","DIRECCIÓN CLIENTE 448","CORINTO","1234-5678"]
[449,"J0310000017050","TARGET PUBLICIDAD SOCIEDAD ANONIMA TARGET","DIRECCIÓN CLIENTE 449","MANAGUA","1234-5678"]
[450,"J0310000015783","TECNASA NICARAGUA SOCIEDAD ANONIMA TECNASA NICARAGUA S.A.",{"$f":"+\"DIRECCIÓN CLIENTE \"&A451","v":"DIRECCIÓN CLIENTE 450"},"MASAYA","1234-5678"]
[451,"J0310000000603","TECNOLOGIA COMPUTARIZADA SOCIEDAD ANONIMA. COMTECH S.A","DIRECCIÓN CLIENTE 451","CARAZO","1234-5678"]
[452,"J0310000001740","TELEFONIA CELULAR DE NICARAGUA SOCIEDAD ANONIMA TIGO","DIRECCIÓN CLIENTE 452","RIVAS","1234-5678"]
[453,"J0310000104905","TERAN INTERNATIONAL SOCIEDAD ANONIMA CASA TERAN","DIRECCIÓN CLIENTE 453","ESTELÍ","1234-5678"]
[454,"J0310000001570","TERMOENCOGIBLES DE NICARAGUA SOCIEDAD ANONIMA TERMOENCOGIBLES","DIRECCIÓN CLIENTE 454","LEÓN","1234-5678"]
[455,"J0310000004994","TERNIUM INTERNACIONAL NICARAGUA SOCIEDAD ANONIMA TERNIUM S.A","DIRECCIÓN CLIENTE 455","CHINANDEGA","1234-5678"]
[456,"J0110000008052","TIJERINO ESPINOZA SOCIEDAD ANONIMA TIENSA","DIRECCIÓN CLIENTE 456","CORINTO","1234-5678"]
[457,"J0610000005943","TIPITAPA POWER COMPANY LIMITADA TIPITAPA POWER CIA LTDA","DIRECCIÓN CLIENTE 457","MANAGUA","1234-5678"]
[458,"J0510000013038","TOLA DEVELOPMENT GROUP, LLC, COMPAÑIA LIMITADA TOLA DEVELOPMENT GROUP, LLC, COMPAÑIA LIMITADA","DIRECCIÓN CLIENTE 458","MASAYA","1234-5678"]
[459,"J0310000031371","TORRECOM PARTNERS LLC Y COMPAÑIA LIMITADA TORRECOM","DIRECCIÓN CLIENTE 459","CARAZO","1234-5678"]
[460,"J0310000016658","TORTIMASA, SOCIEDAD ANONIMA TORTIMASA","DIRECCIÓN CLIENTE 460","RIVAS","1234-5678"]
[461,"J0210000129415","TRANSPORTE TICAL ,S.A. TICAL,S.A.","DIRECCIÓN CLIENTE 461","ESTELÍ","1234-5678"]
[462,"J0310000067015","TRANSPORTE Y CONSTRUCCION SINAI, SOCIEDAD ANONIMA SINAI S,A","DIRECCIÓN CLIENTE 462","LEÓN","1234-5678"]
[463,"J0310000251495","TRANSPORTES CENTROAMERICANOS NICARAGUA INC.,SOCIEDAD ANONIMA TCF NICARAGUA","DIRECCIÓN CLIENTE 463","CHINANDEGA","1234-5678"]
[464,"J0310000002177","TRANSPORTES HERNANDEZ S A TRANHESA","DIRECCIÓN CLIENTE 464","CORINTO","1234-5678"]
[465,"J0310000000174","TRITON MINERA SOCIEDAD ANONIMA TRITON MINERA S.A","DIRECCIÓN CLIENTE 465","MANAGUA","1234-5678"]
[466,"J0310000001308","TROPIGAS DE NIC S A TROPIGAS","DIRECCIÓN CLIENTE 466","MASAYA","1234-5678"]
[467,"J0310000003742","UFINET NICARAGUA SOCIEDAD ANONIMA UFINET","DIRECCIÓN CLIENTE 467","CARAZO","1234-5678"]
[468,"J0310000002622","ULTRA DE NICARAGUA,SOCIEDAD ANONIMA ULTRANIC","DIRECCIÓN CLIENTE 468","RIVAS","1234-5678"]
[469,"J0310000113785","ULTRA VALORES DE NICARAGUA, S.A ULTRAVAL, S.A","DIRECCIÓN CLIENTE 469","ESTELÍ","1234-5678"]
[470,"J0310000003084","UNICOSERVI SOCIEDAD ANONIMA UNICOSERVI LOCO LUIS TROPIGAS CURACAO CETECO","DIRECCIÓN CLIENTE 470","LEÓN","1234-5678"]
[471,"J0310000004048","UNILEVER DE CENTROAMERICA SOCIEDAD ANONIMA UNILEVER DE CENTROAMERICA S.A.","DIRECCIÓN CLIENTE 471","CHINANDEGA","1234-5678"]
[472,"J0310000003610","UNIMAR SOCIEDAD ANONIMA UNIMAR, S.A","DIRECCIÓN CLIENTE 472","CORINTO","1234-5678"]
[473,"J0310000001847","UNION COMERCIAL DE NICARAGUA S A CURACAO TROPIGAS LOCO LUIS","DIRECCIÓN CLIENTE 473","MANAGUA","1234-5678"]
[474,"J0410000019350","UNION DE COOP AGROP DE SERV SOPPEXCCA R L UCA SOPPEXCCA R L","DIRECCIÓN CLIENTE 474","MASAYA","1234-5678"]
[475,"J0410000049984","UNION DE COOPERATIVAS AGROPECUARIAS SAN JUAN RIO COCO R.L","DIRECCIÓN CLIENTE 475","CARAZO","1234-5678"]
[476,"J0210000173058","UNITED PARCEL SERVICE CO. UPSCO","DIRECCIÓN CLIENTE 476","RIVAS","1234-5678"]
[477,"J0310000121249","UNIVERSAL MARKETING ASSOCIATES SOCIEDAD ANONIMA UNIMARK S.A.","DIRECCIÓN CLIENTE 477","ESTELÍ","1234-5678"]
[478,"J0310000006695","UNO NICARAGUA SOCIEDAD ANONIMA UNO NICARAGUA S A","DIRECCIÓN CLIENTE 478","LEÓN","1234-5678"]
[479,"J0510000006554","UNO PETROLEOS DE NICARAGUA Y COMPAÑIA COLECTIVA DE RESPONSABILIDAD LIMITADA","DIRECCIÓN CLIENTE 479","CHINANDEGA","1234-5678"]
[480,"J0310000008094","URBANIZACIONES MODERNAS, SOCIEDAD ANONIMA URMOSA","DIRECCIÓN CLIENTE 480","CORINTO","1234-5678"]
[481,"J0210000355083","VAMED ENGINEERING GMBH, SUCURSAL NICARGUA VAMED ENGINEERING, SUCURSAL NICARGUA","DIRECCIÓN CLIENTE 481","MANAGUA","1234-5678"]
[482,"J0310000004803","VANGUARD SECURITY SOCIEDAD ANONIMA VANGUARD SECURITY S A","DIRECCIÓN CLIENTE 482","MASAYA","1234-5678"]
[483,"J0110000003875","VEHICULOS DE ORIENTE SOCIEDAD ANONIMA VELOSA S.A.","DIRECCIÓN CLIENTE 483","CARAZO","1234-5678"]
[484,"J0310000104441","VIVIENDAS ECONOMICAS DE NICARAGUA SOCIEDAD ANONIMA VIENICSA","DIRECCIÓN CLIENTE 484","RIVAS","1234-5678"]
[485,"J0310000067503","WAPI INDUSTRIAL, SOCIEDAD ANONIMA WAPI INDUSTRIAL S.A.","DIRECCIÓN CLIENTE 485","ESTELÍ","1234-5678"]
[486,"J0310000118124","XINWEI INTELCOM. NIC SOCIEDAD ANONIMA XINWEI","DIRECCIÓN CLIENTE 486","LEÓN","1234-5678"]
[487,"J0310000005834","ZERMAT DE NICARAGUA SOCIEDAD ANONIMA ZERMAT S A","DIRECCIÓN CLIENTE 487","CHINANDEGA","1234-5678"]
[488,"J0310000002592","ZETA GAS NICARAGUA SOCIEDAD ANONIMA. ZETA GAS NICARAGUA SOCIEDAD ANONIMA","DIRECCIÓN CLIENTE 488","CORINTO","1234-5678"]

{"sheet":"Productos","index":2,"n_rows":17,"n_cols":3,"rows_kept":17,"cut":false,"hidden":false,"merged":[]}
["CÓDIGO","PRODUCTO","PRECIO"]
["AN001","Anillo Duna plata",100]
["AN002","Anillo Venus plata",150]
["AN003","Anillo Marte oro",950]
["AN004","Anillo Bera oro",1050]
["PU001","Pulsera Rubic plata",300]
["PU002","Pulsera Rubic oro",1200]
["PU003","Pulsera Classic oro rosa",1000]
["PU004","Pulsera Classic plata",200]
["PE001","Pendientes Rubic plata",500]
["PE002","Pendientes Camee vermeil",800]
["PE003","Pendientes Idol oro rosa",1500]
["PE004","Pendientes Perla plata",700]
["AN005","Anillo Cielo plata",900]
["AN006","Anillo Tierra plata",850]
["AN007","Anillo Mar oro",1600]
["AN008","Anillo Aire oro",1550]